Workbook

Sheet weekly
A1: Week Ending Sat | B1: Chippewa Business Incorporations | C1: Eau Claire Business Incorporations
A2: 2001-01-06 | B2: 2 | C2: 5
A3: 2001-01-13 | B3: 1 | C3: 7
A4: 2001-01-20 | B4: 0 | C4: 1
A5: 2001-01-27 | B5: 3 | C5: 8
A6: 2001-02-03 | B6: 2 | C6: 3
A7: 2001-02-10 | B7: 2 | C7: 5
A8: 2001-02-17 | B8: 3 | C8: 13
A9: 2001-02-24 | B9: 3 | C9: 5
A10: 2001-03-03 | B10: 8 | C10: 3
A11: 2001-03-10 | B11: 2 | C11: 8
A12: 2001-03-17 | B12: 4 | C12: 5
A13: 2001-03-24 | B13: 2 | C13: 6
A14: 2001-03-31 | B14: 7 | C14: 7
A15: 2001-04-07 | B15: 1 | C15: 3
A16: 2001-04-14 | B16: 1 | C16: 5
A17: 2001-04-21 | B17: 0 | C17: 4
A18: 2001-04-28 | B18: 2 | C18: 6
A19: 2001-05-05 | B19: 4 | C19: 8
A20: 2001-05-12 | B20: 4 | C20: 7
A21: 2001-05-19 | B21: 4 | C21: 5
A22: 2001-05-26 | B22: 3 | C22: 4
A23: 2001-06-02 | B23: 3 | C23: 4
A24: 2001-06-09 | B24: 1 | C24: 5
A25: 2001-06-16 | B25: 7 | C25: 1
A26: 2001-06-23 | B26: 1 | C26: 1
A27: 2001-06-30 | B27: 7 | C27: 8
A28: 2001-07-07 | B28: 1 | C28: 4
A29: 2001-07-14 | B29: 1 | C29: 4
A30: 2001-07-21 | B30: 1 | C30: 6
A31: 2001-07-28 | B31: 5 | C31: 3
A32: 2001-08-04 | B32: 2 | C32: 1
A33: 2001-08-11 | B33: 2 | C33: 2
A34: 2001-08-18 | B34: 3 | C34: 6
A35: 2001-08-25 | B35: 5 | C35: 4
A36: 2001-09-01 | B36: 1 | C36: 8
A37: 2001-09-08 | B37: 0 | C37: 1
A38: 2001-09-15 | B38: 2 | C38: 6
A39: 2001-09-22 | B39: 1 | C39: 4
A40: 2001-09-29 | B40: 4 | C40: 6
A41: 2001-10-06 | B41: 1 | C41: 7
A42: 2001-10-13 | B42: 6 | C42: 4
A43: 2001-10-20 | B43: 3 | C43: 4
A44: 2001-10-27 | B44: 2 | C44: 4
A45: 2001-11-03 | B45: 3 | C45: 6
A46: 2001-11-10 | B46: 5 | C46: 1
A47: 2001-11-17 | B47: 4 | C47: 5
A48: 2001-11-24 | B48: 0 | C48: 0
A49: 2001-12-01 | B49: 2 | C49: 12
A50: 2001-12-08 | B50: 5 | C50: 1
A51: 2001-12-15 | B51: 1 | C51: 3
A52: 2001-12-22 | B52: 3 | C52: 7
A53: 2001-12-29 | B53: 2 | C53: 4
A54: 2002-01-05 | B54: 2 | C54: 8
A55: 2002-01-12 | B55: 4 | C55: 12
A56: 2002-01-19 | B56: 1 | C56: 4
A57: 2002-01-26 | B57: 2 | C57: 5
A58: 2002-02-02 | B58: 3 | C58: 9
A59: 2002-02-09 | B59: 0 | C59: 0
A60: 2002-02-16 | B60: 2 | C60: 5
A61: 2002-02-23 | B61: 0 | C61: 0
A62: 2002-03-02 | B62: 6 | C62: 8
A63: 2002-03-09 | B63: 1 | C63: 6
A64: 2002-03-16 | B64: 7 | C64: 6
A65: 2002-03-23 | B65: 1 | C65: 7
A66: 2002-03-30 | B66: 2 | C66: 4
A67: 2002-04-06 | B67: 0 | C67: 8
A68: 2002-04-13 | B68: 3 | C68: 12
A69: 2002-04-20 | B69: 0 | C69: 0
A70: 2002-04-27 | B70: 5 | C70: 12
A71: 2002-05-04 | B71: 7 | C71: 6
A72: 2002-05-11 | B72: 4 | C72: 5
A73: 2002-05-18 | B73: 9 | C73: 7
A74: 2002-05-25 | B74: 0 | C74: 0
A75: 2002-06-01 | B75: 6 | C75: 18
A76: 2002-06-08 | B76: 4 | C76: 7
A77: 2002-06-15 | B77: 2 | C77: 3
A78: 2002-06-22 | B78: 6 | C78: 8
A79: 2002-06-29 | B79: 2 | C79: 6
A80: 2002-07-06 | B80: 0 | C80: 0
A81: 2002-07-13 | B81: 1 | C81: 12
A82: 2002-07-20 | B82: 3 | C82: 9
A83: 2002-07-27 | B83: 3 | C83: 6
A84: 2002-08-03 | B84: 1 | C84: 8
A85: 2002-08-10 | B85: 3 | C85: 7
A86: 2002-08-17 | B86: 4 | C86: 1
A87: 2002-08-24 | B87: 6 | C87: 4
A88: 2002-08-31 | B88: 4 | C88: 6
A89: 2002-09-07 | B89: 0 | C89: 0
A90: 2002-09-14 | B90: 1 | C90: 7
A91: 2002-09-21 | B91: 2 | C91: 12
A92: 2002-09-28 | B92: 4 | C92: 5
A93: 2002-10-05 | B93: 0 | C93: 0
A94: 2002-10-12 | B94: 2 | C94: 11
A95: 2002-10-19 | B95: 1 | C95: 7
A96: 2002-10-26 | B96: 2 | C96: 7
A97: 2002-11-02 | B97: 2 | C97: 9
A98: 2002-11-09 | B98: 4 | C98: 6
A99: 2002-11-16 | B99: 3 | C99: 12
A100: 2002-11-23 | B100: 0 | C100: 0
A101: 2002-11-30 | B101: 3 | C101: 14
A102: 2002-12-07 | B102: 1 | C102: 5
A103: 2002-12-14 | B103: 0 | C103: 0
A104: 2002-12-21 | B104: 4 | C104: 8
A105: 2002-12-28 | B105: 7 | C105: 7
A106: 2003-01-04 | B106: 2 | C106: 7
A107: 2003-01-11 | B107: 7 | C107: 11
A108: 2003-01-18 | B108: 3 | C108: 6
A109: 2003-01-25 | B109: 6 | C109: 2
A110: 2003-02-01 | B110: 1 | C110: 6
A111: 2003-02-08 | B111: 0 | C111: 0
A112: 2003-02-15 | B112: 8 | C112: 11
A113: 2003-02-22 | B113: 4 | C113: 11
A114: 2003-03-01 | B114: 2 | C114: 3
A115: 2003-03-08 | B115: 5 | C115: 8
A116: 2003-03-15 | B116: 2 | C116: 7
A117: 2003-03-22 | B117: 6 | C117: 10
A118: 2003-03-29 | B118: 3 | C118: 5
A119: 2003-04-05 | B119: 6 | C119: 1
A120: 2003-04-12 | B120: 4 | C120: 4
A121: 2003-04-19 | B121: 6 | C121: 5
A122: 2003-04-26 | B122: 3 | C122: 5
A123: 2003-05-03 | B123: 4 | C123: 7
A124: 2003-05-10 | B124: 2 | C124: 8
A125: 2003-05-17 | B125: 5 | C125: 8
A126: 2003-05-24 | B126: 2 | C126: 11
A127: 2003-05-31 | B127: 1 | C127: 7
A128: 2003-06-07 | B128: 5 | C128: 9
A129: 2003-06-14 | B129: 4 | C129: 4
A130: 2003-06-21 | B130: 3 | C130: 10
A131: 2003-06-28 | B131: 5 | C131: 7
A132: 2003-07-05 | B132: 2 | C132: 6
A133: 2003-07-12 | B133: 4 | C133: 8
A134: 2003-07-19 | B134: 5 | C134: 5
A135: 2003-07-26 | B135: 2 | C135: 7
A136: 2003-08-02 | B136: 1 | C136: 4
A137: 2003-08-09 | B137: 2 | C137: 5
A138: 2003-08-16 | B138: 2 | C138: 10
A139: 2003-08-23 | B139: 3 | C139: 6
A140: 2003-08-30 | B140: 7 | C140: 4
A141: 2003-09-06 | B141: 2 | C141: 3
A142: 2003-09-13 | B142: 2 | C142: 9
A143: 2003-09-20 | B143: 4 | C143: 5
A144: 2003-09-27 | B144: 4 | C144: 4
A145: 2003-10-04 | B145: 3 | C145: 6
A146: 2003-10-11 | B146: 2 | C146: 6
A147: 2003-10-18 | B147: 4 | C147: 6
A148: 2003-10-25 | B148: 3 | C148: 9
A149: 2003-11-01 | B149: 5 | C149: 8
A150: 2003-11-08 | B150: 11 | C150: 6
A151: 2003-11-15 | B151: 1 | C151: 9
A152: 2003-11-22 | B152: 3 | C152: 5
A153: 2003-11-29 | B153: 3 | C153: 7
A154: 2003-12-06 | B154: 3 | C154: 6
A155: 2003-12-13 | B155: 0 | C155: 0
A156: 2003-12-20 | B156: 6 | C156: 19
A157: 2003-12-27 | B157: 0 | C157: 0
A158: 2004-01-03 | B158: 9 | C158: 20
A159: 2004-01-10 | B159: 5 | C159: 13
A160: 2004-01-17 | B160: 6 | C160: 6
A161: 2004-01-24 | B161: 10 | C161: 9
A162: 2004-01-31 | B162: 5 | C162: 8
A163: 2004-02-07 | B163: 3 | C163: 8
A164: 2004-02-14 | B164: 1 | C164: 7
A165: 2004-02-21 | B165: 4 | C165: 1
A166: 2004-02-28 | B166: 3 | C166: 9
A167: 2004-03-06 | B167: 4 | C167: 4
A168: 2004-03-13 | B168: 4 | C168: 18
A169: 2004-03-20 | B169: 2 | C169: 6
A170: 2004-03-27 | B170: 6 | C170: 18
A171: 2004-04-03 | B171: 9 | C171: 14
A172: 2004-04-10 | B172: 5 | C172: 14
A173: 2004-04-17 | B173: 5 | C173: 6
A174: 2004-04-24 | B174: 4 | C174: 7
A175: 2004-05-01 | B175: 10 | C175: 7
A176: 2004-05-08 | B176: 6 | C176: 13
A177: 2004-05-15 | B177: 7 | C177: 6
A178: 2004-05-22 | B178: 5 | C178: 17
A179: 2004-05-29 | B179: 2 | C179: 11
A180: 2004-06-05 | B180: 2 | C180: 11
A181: 2004-06-12 | B181: 7 | C181: 10
A182: 2004-06-19 | B182: 5 | C182: 12
A183: 2004-06-26 | B183: 5 | C183: 9
A184: 2004-07-03 | B184: 6 | C184: 8
A185: 2004-07-10 | B185: 0 | C185: 0
A186: 2004-07-17 | B186: 8 | C186: 12
A187: 2004-07-24 | B187: 1 | C187: 8
A188: 2004-07-31 | B188: 6 | C188: 5
A189: 2004-08-07 | B189: 1 | C189: 5
A190: 2004-08-14 | B190: 3 | C190: 4
A191: 2004-08-21 | B191: 0 | C191: 4
A192: 2004-08-28 | B192: 5 | C192: 10
A193: 2004-09-04 | B193: 2 | C193: 11
A194: 2004-09-11 | B194: 2 | C194: 9
A195: 2004-09-18 | B195: 3 | C195: 12
A196: 2004-09-25 | B196: 2 | C196: 5
A197: 2004-10-02 | B197: 3 | C197: 6
A198: 2004-10-09 | B198: 4 | C198: 5
A199: 2004-10-16 | B199: 4 | C199: 7
A200: 2004-10-23 | B200: 1 | C200: 8
... 638 more rows

Sheet Work details
A1: Bottom Line Newsletter
A3: Dates in the data refer to the dates of the Bottom Line issues in which the information is provided, not the dates when the activities are reported to government agencies.
A4: Bottom Line issues are dated on Fridays, and entered in the data for the following Saturdays.
A6: Data on incorporations are for about five weeks before the date in the data. (For example, data from Feb. 14 - 23 appear on April 1st.) Data on bankruptcies and building permits are for the week before.
A8: The Bottom Line gets data on incorporations from the WI Secretary of State's office; data on building permits from the county Inspectors' offices; and data on bankruptcies from the Eau Claire US Clerk of Bankruptcy office.
A13: cvcerd folder, economic indicators folder, data, folder, bldperm_bankrupt_businc folder
A14: File Name: bot_line_data.xls (w = weekly, m = monthly)
A16: Contact: Dan Ropa: Bottom Line Editor 715-834-7337
A17: -Sent directly to me by mail weekly (on Friday) (incorporations have longer lag than BP and Bank)
A19: -Count weekly Numbers
A20: -Calculate Total for Each Month (sum weekly), Use Data Timing Rule
A22: ec_wbr-----Eau Claire County Bankruptcies, weekly
A23: ch_wbr-----Chippewa County Bankruptcies, weekly
A24: ecch_wbr-----Bankruptcies (Eau Claire MSA), weekly
A25: ec_wbp-----Eau Claire Commercial County Building Permits, at least $40,000, weekly
A26: ch_wbp-----Chippewa County Commercial Building Permits, at least $40,000, weekly
A27: ecch_wbp-----Commercial Building Permits (Eau Claire MSA), at least $40,000, weekly
A28: ec_vwbp-----Value Eau Claire Commercial County Building Permits, weekly
A29: ch_vwbp-----Value Chippewa County Commercial Building Permits, weekly
A30: ecch_vwbp-----Value Commercial Building Permits (Eau Claire MSA), weekly
A31: ec_wbi-----New Business Incorporations in Eau Claire County, weekly
A32: ch_wbi-----New Business Incorporations in Chippewa County, weekly
A33: ecch_wbi-----New Business Incorporations (Eau Claire MSA), weekly
A34: ec_mbr-----Eau Claire County Bankruptcies, monthly
A35: ch_mbr-----Chippewa County Bankruptcies, monthly
A36: ecch_mbr-----Bankruptcies (Eau Claire MSA), monthly
A37: ec_mbp-----Eau Claire County Commercial Building Permits, at least $40,000, monthly
A38: ch_mbp-----Chippewa County Commercial Building Permits, at least $40,000, monthly
A39: ecch_mbp-----Commercial Building Permits (Eau Claire MSA), at least $40,000, monthly
A40: ec_vmbp_r96-----Real (96) Value Eau Claire Commercial County Building Permits , weekly
A41: ch_vmbp_r96-----Real (96) Value Chippewa County Commercial Building Permits, weekly
A42: ecch_vmbp_r96-----Real (96) Value Commercial Building Permits (Eau Claire MSA), weekly
A43: ec_mbi----- New Business Incorporations in Eau Claire County, monthly
A44: ch_mbi----- New Business Incorporations in Chippewa County, monthly
A45: ecch_mbi-----New Business Incorporations (Eau Claire MSA), monthly
A47: Data Timing if week goes into next month.
A48: If new month is 3 or less it is part of previous month.
A49: If new month is 4 or more it is part of the new month.
A51: *Calculate real $ for value
A53: Report: Page 17
A54: Web Data Folder, sales_economic_activity folder, cvcerd_bankrupt_bus-inc_data_2010-2019.xls
A56: Report: Page 18
A57: Web Data Folder, construction_building folder, cvcerd_com-ind_build_permit_data_2010-2019.xls

Sheet monthly
A1: month | B1: ch_mbr | C1: ch_mbp | D1: ch_vmbp | E1: ch_vmbp_r96 | F1: ch_mbi | G1: ec_mbr | H1: ec_mbp | I1: ec_vmbp | J1: ec_vmbp_r96 | K1: ec_mbi | L1: ecch_mbr | M1: ecch_mbp | N1: ecch_vmbp | O1: ecch_vmbp_r96 | P1: ecch_mbi | Q1: mw_u_cpi | R1: mw_u_cpi_96 | S1: base: 1996=100
A2: 2001-01-01 | B2: =SUM(weekly!#REF!) ->  | C2: =SUM(weekly!#REF!) ->  | F2: =SUM(weekly!B2:B6) -> 8 | G2: =SUM(weekly!#REF!) ->  | H2: =SUM(weekly!#REF!) ->  | K2: =SUM(weekly!C2:C6) -> 24 | L2: =SUM(weekly!#REF!) ->  | M2: =SUM(weekly!#REF!) ->  | N2: =SUM(weekly!#REF!) ->  | O2: =(N2/R2)*100 ->  | P2: =SUM(weekly!#REF!) ->  | Q2: 171.9 | R2: =(Q2/$S$2)*100 -> 112.359061 | S2: 152.9916667
A3: 2001-02-01 | B3: =SUM(weekly!#REF!) ->  | C3: =SUM(weekly!#REF!) ->  | F3: =SUM(weekly!B7:B10) -> 16 | G3: =SUM(weekly!#REF!) ->  | H3: =SUM(weekly!#REF!) ->  | K3: =SUM(weekly!C7:C10) -> 26 | L3: =SUM(weekly!#REF!) ->  | M3: =SUM(weekly!#REF!) ->  | N3: =SUM(weekly!#REF!) ->  | P3: =SUM(weekly!#REF!) ->  | Q3: 172.1 | R3: =(Q3/$S$2)*100 -> 112.489787
A4: 2001-03-01 | B4: =SUM(weekly!#REF!) ->  | C4: =SUM(weekly!#REF!) ->  | F4: =SUM(weekly!B11:B14) -> 15 | G4: =SUM(weekly!#REF!) ->  | H4: =SUM(weekly!#REF!) ->  | K4: =SUM(weekly!C11:C14) -> 26 | L4: =SUM(weekly!#REF!) ->  | M4: =SUM(weekly!#REF!) ->  | N4: =SUM(weekly!#REF!) ->  | P4: =SUM(weekly!#REF!) ->  | Q4: 171.7 | R4: 112.2283349
A5: 2001-04-01 | B5: =SUM(weekly!#REF!) ->  | C5: =SUM(weekly!#REF!) ->  | F5: =SUM(weekly!B15:B18) -> 4 | G5: =SUM(weekly!#REF!) ->  | H5: =SUM(weekly!#REF!) ->  | K5: =SUM(weekly!C15:C18) -> 18 | L5: =SUM(weekly!#REF!) ->  | M5: =SUM(weekly!#REF!) ->  | N5: =SUM(weekly!#REF!) ->  | P5: =SUM(weekly!#REF!) ->  | Q5: 172.8 | R5: 112.9473283
A6: 2001-05-01 | B6: =SUM(weekly!#REF!) ->  | C6: =SUM(weekly!#REF!) ->  | F6: =SUM(weekly!B19:B23) -> 18 | G6: =SUM(weekly!#REF!) ->  | H6: =SUM(weekly!#REF!) ->  | K6: =SUM(weekly!C19:C23) -> 28 | L6: =SUM(weekly!#REF!) ->  | M6: =SUM(weekly!#REF!) ->  | N6: =SUM(weekly!#REF!) ->  | P6: =SUM(weekly!#REF!) ->  | Q6: 174.2 | R6: 113.8624108
A7: 2001-06-01 | B7: =SUM(weekly!#REF!) ->  | C7: =SUM(weekly!#REF!) ->  | F7: =SUM(weekly!B24:B27) -> 16 | G7: =SUM(weekly!#REF!) ->  | H7: =SUM(weekly!#REF!) ->  | K7: =SUM(weekly!C24:C27) -> 15 | L7: =SUM(weekly!#REF!) ->  | M7: =SUM(weekly!#REF!) ->  | N7: =SUM(weekly!#REF!) ->  | P7: =SUM(weekly!#REF!) ->  | Q7: 173.8 | R7: 113.6009587
A8: 2001-07-01 | B8: =SUM(weekly!#REF!) ->  | C8: =SUM(weekly!#REF!) ->  | F8: =SUM(weekly!B28:B31) -> 8 | G8: =SUM(weekly!#REF!) ->  | H8: =SUM(weekly!#REF!) ->  | K8: =SUM(weekly!C28:C31) -> 17 | L8: =SUM(weekly!#REF!) ->  | M8: =SUM(weekly!#REF!) ->  | N8: =SUM(weekly!#REF!) ->  | P8: =SUM(weekly!#REF!) ->  | Q8: 172.5 | R8: 112.7512392
A9: 2001-08-01 | B9: =SUM(weekly!#REF!) ->  | C9: =SUM(weekly!#REF!) ->  | F9: =SUM(weekly!B32:B36) -> 13 | G9: =SUM(weekly!#REF!) ->  | H9: =SUM(weekly!#REF!) ->  | K9: =SUM(weekly!C32:C36) -> 21 | L9: =SUM(weekly!#REF!) ->  | M9: =SUM(weekly!#REF!) ->  | N9: =SUM(weekly!#REF!) ->  | P9: =SUM(weekly!#REF!) ->  | Q9: 173 | R9: 113.0780544
A10: 2001-09-01 | B10: =SUM(weekly!#REF!) ->  | C10: =SUM(weekly!#REF!) ->  | F10: =SUM(weekly!B37:B40) -> 7 | G10: =SUM(weekly!#REF!) ->  | H10: =SUM(weekly!#REF!) ->  | K10: =SUM(weekly!C37:C40) -> 17 | L10: =SUM(weekly!#REF!) ->  | M10: =SUM(weekly!#REF!) ->  | N10: =SUM(weekly!#REF!) ->  | P10: =SUM(weekly!#REF!) ->  | Q10: 174.6 | R10: 114.123863
A11: 2001-10-01 | B11: =SUM(weekly!#REF!) ->  | C11: =SUM(weekly!#REF!) ->  | F11: =SUM(weekly!B41:B45) -> 15 | G11: =SUM(weekly!#REF!) ->  | H11: =SUM(weekly!#REF!) ->  | K11: =SUM(weekly!C41:C45) -> 25 | L11: =SUM(weekly!#REF!) ->  | M11: =SUM(weekly!#REF!) ->  | N11: =SUM(weekly!#REF!) ->  | P11: =SUM(weekly!#REF!) ->  | Q11: 172.6 | R11: 112.8166022
A12: 2001-11-01 | B12: =SUM(weekly!#REF!) ->  | C12: =SUM(weekly!#REF!) ->  | F12: =SUM(weekly!B46:B49) -> 11 | G12: =SUM(weekly!#REF!) ->  | H12: =SUM(weekly!#REF!) ->  | K12: =SUM(weekly!C46:C49) -> 18 | L12: =SUM(weekly!#REF!) ->  | M12: =SUM(weekly!#REF!) ->  | N12: =SUM(weekly!#REF!) ->  | P12: =SUM(weekly!#REF!) ->  | Q12: 172.5 | R12: 112.7512392
A13: 2001-12-01 | B13: =SUM(weekly!#REF!) ->  | C13: =SUM(weekly!#REF!) ->  | F13: =SUM(weekly!B50:B53) -> 11 | G13: =SUM(weekly!#REF!) ->  | H13: =SUM(weekly!#REF!) ->  | K13: =SUM(weekly!C50:C53) -> 15 | L13: =SUM(weekly!#REF!) ->  | M13: =SUM(weekly!#REF!) ->  | N13: =SUM(weekly!#REF!) ->  | P13: =SUM(weekly!#REF!) ->  | Q13: 171.9 | R13: 112.359061
A14: 2002-01-01 | B14: =SUM(weekly!#REF!) ->  | C14: =SUM(weekly!#REF!) ->  | D14: =SUM(weekly!#REF!) ->  | E14: =(D14/R14)*100 ->  | F14: =SUM(weekly!B54:B58) -> 12 | G14: =SUM(weekly!#REF!) ->  | H14: =SUM(weekly!#REF!) ->  | I14: =SUM(weekly!#REF!) ->  | J14: =(I14/R14)*100 ->  | K14: =SUM(weekly!C54:C58) -> 38 | L14: =SUM(weekly!#REF!) ->  | M14: =SUM(weekly!#REF!) ->  | N14: =SUM(weekly!#REF!) ->  | O14: =(N14/R14)*100 ->  | P14: =SUM(weekly!#REF!) ->  | Q14: 172.1 | R14: 112.489787
A15: 2002-02-01 | B15: =SUM(weekly!#REF!) ->  | C15: =SUM(weekly!#REF!) ->  | D15: =SUM(weekly!#REF!) ->  | E15: =(D15/R15)*100 ->  | F15: =SUM(weekly!B59:B62) -> 8 | G15: =SUM(weekly!#REF!) ->  | H15: =SUM(weekly!#REF!) ->  | I15: =SUM(weekly!#REF!) ->  | J15: =(I15/R15)*100 ->  | K15: =SUM(weekly!C59:C62) -> 13 | L15: =SUM(weekly!#REF!) ->  | M15: =SUM(weekly!#REF!) ->  | N15: =SUM(weekly!#REF!) ->  | O15: =(N15/R15)*100 ->  | P15: =SUM(weekly!#REF!) ->  | Q15: 172.5 | R15: 112.7512392
A16: 2002-03-01 | B16: =SUM(weekly!#REF!) ->  | C16: =SUM(weekly!#REF!) ->  | D16: =SUM(weekly!#REF!) ->  | F16: =SUM(weekly!B63:B66) -> 11 | G16: =SUM(weekly!#REF!) ->  | H16: =SUM(weekly!#REF!) ->  | I16: =SUM(weekly!#REF!) ->  | K16: =SUM(weekly!C63:C66) -> 23 | L16: =SUM(weekly!#REF!) ->  | M16: =SUM(weekly!#REF!) ->  | N16: =SUM(weekly!#REF!) ->  | P16: =SUM(weekly!#REF!) ->  | Q16: 173.6 | R16: 113.4702326
A17: 2002-04-01 | B17: =SUM(weekly!#REF!) ->  | C17: =SUM(weekly!#REF!) ->  | D17: =SUM(weekly!#REF!) ->  | F17: =SUM(weekly!B67:B70) -> 8 | G17: =SUM(weekly!#REF!) ->  | H17: =SUM(weekly!#REF!) ->  | I17: =SUM(weekly!#REF!) ->  | K17: =SUM(weekly!C67:C70) -> 32 | L17: =SUM(weekly!#REF!) ->  | M17: =SUM(weekly!#REF!) ->  | N17: =SUM(weekly!#REF!) ->  | P17: =SUM(weekly!#REF!) ->  | Q17: 174.7 | R17: 114.189226
A18: 2002-05-01 | B18: =SUM(weekly!#REF!) ->  | C18: =SUM(weekly!#REF!) ->  | D18: =SUM(weekly!#REF!) ->  | F18: =SUM(weekly!B71:B75) -> 26 | G18: =SUM(weekly!#REF!) ->  | H18: =SUM(weekly!#REF!) ->  | I18: =SUM(weekly!#REF!) ->  | K18: =SUM(weekly!C71:C75) -> 36 | L18: =SUM(weekly!#REF!) ->  | M18: =SUM(weekly!#REF!) ->  | N18: =SUM(weekly!#REF!) ->  | P18: =SUM(weekly!#REF!) ->  | Q18: 174.8 | R18: 114.254589
A19: 2002-06-01 | B19: =SUM(weekly!#REF!) ->  | C19: =SUM(weekly!#REF!) ->  | D19: =SUM(weekly!#REF!) ->  | F19: =SUM(weekly!B76:B79) -> 14 | G19: =SUM(weekly!#REF!) ->  | H19: =SUM(weekly!#REF!) ->  | I19: =SUM(weekly!#REF!) ->  | K19: =SUM(weekly!C76:C79) -> 24 | L19: =SUM(weekly!#REF!) ->  | M19: =SUM(weekly!#REF!) ->  | N19: =SUM(weekly!#REF!) ->  | P19: =SUM(weekly!#REF!) ->  | Q19: 175.3 | R19: 114.5814042
A20: 2002-07-01 | B20: =SUM(weekly!#REF!) ->  | C20: =SUM(weekly!#REF!) ->  | D20: =SUM(weekly!#REF!) ->  | F20: =SUM(weekly!B80:B84) -> 8 | G20: =SUM(weekly!#REF!) ->  | H20: =SUM(weekly!#REF!) ->  | I20: =SUM(weekly!#REF!) ->  | K20: =SUM(weekly!C80:C84) -> 35 | L20: =SUM(weekly!#REF!) ->  | M20: =SUM(weekly!#REF!) ->  | N20: =SUM(weekly!#REF!) ->  | P20: =SUM(weekly!#REF!) ->  | Q20: 175.3 | R20: 114.5814042
A21: 2002-08-01 | B21: =SUM(weekly!#REF!) ->  | C21: =SUM(weekly!#REF!) ->  | D21: =SUM(weekly!#REF!) ->  | F21: =SUM(weekly!B85:B88) -> 17 | G21: =SUM(weekly!#REF!) ->  | H21: =SUM(weekly!#REF!) ->  | I21: =SUM(weekly!#REF!) ->  | K21: =SUM(weekly!C85:C88) -> 18 | L21: =SUM(weekly!#REF!) ->  | M21: =SUM(weekly!#REF!) ->  | N21: =SUM(weekly!#REF!) ->  | P21: =SUM(weekly!#REF!) ->  | Q21: 175.8 | R21: 114.9082194
A22: 2002-09-01 | B22: =SUM(weekly!#REF!) ->  | C22: =SUM(weekly!#REF!) ->  | D22: =SUM(weekly!#REF!) ->  | F22: =SUM(weekly!B89:B92) -> 7 | G22: =SUM(weekly!#REF!) ->  | H22: =SUM(weekly!#REF!) ->  | I22: =SUM(weekly!#REF!) ->  | K22: =SUM(weekly!C89:C92) -> 24 | L22: =SUM(weekly!#REF!) ->  | M22: =SUM(weekly!#REF!) ->  | N22: =SUM(weekly!#REF!) ->  | P22: =SUM(weekly!#REF!) ->  | Q22: 176.2 | R22: 115.1696716
A23: 2002-10-01 | B23: =SUM(weekly!#REF!) ->  | C23: =SUM(weekly!#REF!) ->  | D23: =SUM(weekly!#REF!) ->  | F23: =SUM(weekly!B93:B97) -> 7 | G23: =SUM(weekly!#REF!) ->  | H23: =SUM(weekly!#REF!) ->  | I23: =SUM(weekly!#REF!) ->  | K23: =SUM(weekly!C93:C97) -> 34 | L23: =SUM(weekly!#REF!) ->  | M23: =SUM(weekly!#REF!) ->  | N23: =SUM(weekly!#REF!) ->  | P23: =SUM(weekly!#REF!) ->  | Q23: 176.3 | R23: 115.2350346
A24: 2002-11-01 | B24: =SUM(weekly!#REF!) ->  | C24: =SUM(weekly!#REF!) ->  | D24: =SUM(weekly!#REF!) ->  | F24: =SUM(weekly!B98:B101) -> 10 | G24: =SUM(weekly!#REF!) ->  | H24: =SUM(weekly!#REF!) ->  | I24: =SUM(weekly!#REF!) ->  | K24: =SUM(weekly!C98:C101) -> 32 | L24: =SUM(weekly!#REF!) ->  | M24: =SUM(weekly!#REF!) ->  | N24: =SUM(weekly!#REF!) ->  | P24: =SUM(weekly!#REF!) ->  | Q24: 176.1 | R24: 115.1043085
A25: 2002-12-01 | B25: =SUM(weekly!#REF!) ->  | C25: =SUM(weekly!#REF!) ->  | D25: =SUM(weekly!#REF!) ->  | F25: =SUM(weekly!B102:B105) -> 12 | G25: =SUM(weekly!#REF!) ->  | H25: =SUM(weekly!#REF!) ->  | I25: =SUM(weekly!#REF!) ->  | K25: =SUM(weekly!C102:C105) -> 20 | L25: =SUM(weekly!#REF!) ->  | M25: =SUM(weekly!#REF!) ->  | N25: =SUM(weekly!#REF!) ->  | P25: =SUM(weekly!#REF!) ->  | Q25: 175.5 | R25: 114.7121303
A26: 2003-01-01 | B26: =SUM(weekly!#REF!) ->  | C26: =SUM(weekly!#REF!) ->  | D26: =SUM(weekly!#REF!) ->  | F26: =SUM(weekly!B106:B110) -> 19 | G26: =SUM(weekly!#REF!) ->  | H26: =SUM(weekly!#REF!) ->  | I26: =SUM(weekly!#REF!) ->  | K26: =SUM(weekly!C106:C110) -> 32 | L26: =SUM(weekly!#REF!) ->  | M26: =SUM(weekly!#REF!) ->  | N26: =SUM(weekly!#REF!) ->  | P26: =SUM(weekly!#REF!) ->  | Q26: 176.2 | R26: 115.1696716
A27: 2003-02-01 | B27: =SUM(weekly!#REF!) ->  | C27: =SUM(weekly!#REF!) ->  | D27: =SUM(weekly!#REF!) ->  | F27: =SUM(weekly!B111:B114) -> 14 | G27: =SUM(weekly!#REF!) ->  | H27: =SUM(weekly!#REF!) ->  | I27: =SUM(weekly!#REF!) ->  | K27: =SUM(weekly!C111:C114) -> 25 | L27: =SUM(weekly!#REF!) ->  | M27: =SUM(weekly!#REF!) ->  | N27: =SUM(weekly!#REF!) ->  | P27: =SUM(weekly!#REF!) ->  | Q27: 177.8 | R27: 116.2154801
A28: 2003-03-01 | B28: =SUM(weekly!#REF!) ->  | C28: =SUM(weekly!#REF!) ->  | D28: =SUM(weekly!#REF!) ->  | F28: =SUM(weekly!B115:B118) -> 16 | G28: =SUM(weekly!#REF!) ->  | H28: =SUM(weekly!#REF!) ->  | I28: =SUM(weekly!#REF!) ->  | K28: =SUM(weekly!C115:C118) -> 30 | L28: =SUM(weekly!#REF!) ->  | M28: =SUM(weekly!#REF!) ->  | N28: =SUM(weekly!#REF!) ->  | P28: =SUM(weekly!#REF!) ->  | Q28: 178.6 | R28: 116.7383844
A29: 2003-04-01 | B29: =SUM(weekly!#REF!) ->  | C29: =SUM(weekly!#REF!) ->  | D29: =SUM(weekly!#REF!) ->  | F29: =SUM(weekly!B119:B123) -> 23 | G29: =SUM(weekly!#REF!) ->  | H29: =SUM(weekly!#REF!) ->  | I29: =SUM(weekly!#REF!) ->  | K29: =SUM(weekly!C119:C123) -> 22 | L29: =SUM(weekly!#REF!) ->  | M29: =SUM(weekly!#REF!) ->  | N29: =SUM(weekly!#REF!) ->  | P29: =SUM(weekly!#REF!) ->  | Q29: 177.8 | R29: 116.2154801
A30: 2003-05-01 | B30: =SUM(weekly!#REF!) ->  | C30: =SUM(weekly!#REF!) ->  | D30: =SUM(weekly!#REF!) ->  | F30: =SUM(weekly!B124:B127) -> 10 | G30: =SUM(weekly!#REF!) ->  | H30: =SUM(weekly!#REF!) ->  | I30: =SUM(weekly!#REF!) ->  | K30: =SUM(weekly!C124:C127) -> 34 | L30: =SUM(weekly!#REF!) ->  | M30: =SUM(weekly!#REF!) ->  | N30: =SUM(weekly!#REF!) ->  | P30: =SUM(weekly!#REF!) ->  | Q30: 177.7 | R30: 116.1501171
A31: 2003-06-01 | B31: =SUM(weekly!#REF!) ->  | C31: =SUM(weekly!#REF!) ->  | D31: =SUM(weekly!#REF!) ->  | F31: =SUM(weekly!B128:B131) -> 17 | G31: =SUM(weekly!#REF!) ->  | H31: =SUM(weekly!#REF!) ->  | I31: =SUM(weekly!#REF!) ->  | K31: =SUM(weekly!C128:C131) -> 30 | L31: =SUM(weekly!#REF!) ->  | M31: =SUM(weekly!#REF!) ->  | N31: =SUM(weekly!#REF!) ->  | P31: =SUM(weekly!#REF!) ->  | Q31: 178.4 | R31: 116.6076584
A32: 2003-07-01 | B32: =SUM(weekly!#REF!) ->  | C32: =SUM(weekly!#REF!) ->  | D32: =SUM(weekly!#REF!) ->  | F32: =SUM(weekly!B132:B136) -> 14 | G32: =SUM(weekly!#REF!) ->  | H32: =SUM(weekly!#REF!) ->  | I32: =SUM(weekly!#REF!) ->  | K32: =SUM(weekly!C132:C136) -> 30 | L32: =SUM(weekly!#REF!) ->  | M32: =SUM(weekly!#REF!) ->  | N32: =SUM(weekly!#REF!) ->  | P32: =SUM(weekly!#REF!) ->  | Q32: 178.1 | R32: 116.4115693
A33: 2003-08-01 | B33: =SUM(weekly!#REF!) ->  | C33: =SUM(weekly!#REF!) ->  | D33: =SUM(weekly!#REF!) ->  | F33: =SUM(weekly!B137:B140) -> 14 | G33: =SUM(weekly!#REF!) ->  | H33: =SUM(weekly!#REF!) ->  | I33: =SUM(weekly!#REF!) ->  | K33: =SUM(weekly!C137:C140) -> 25 | L33: =SUM(weekly!#REF!) ->  | M33: =SUM(weekly!#REF!) ->  | N33: =SUM(weekly!#REF!) ->  | P33: =SUM(weekly!#REF!) ->  | Q33: 178.8 | R33: 116.8691105
A34: 2003-09-01 | B34: =SUM(weekly!#REF!) ->  | C34: =SUM(weekly!#REF!) ->  | D34: =SUM(weekly!#REF!) ->  | F34: =SUM(weekly!B141:B144) -> 12 | G34: =SUM(weekly!#REF!) ->  | H34: =SUM(weekly!#REF!) ->  | I34: =SUM(weekly!#REF!) ->  | K34: =SUM(weekly!C141:C144) -> 21 | L34: =SUM(weekly!#REF!) ->  | M34: =SUM(weekly!#REF!) ->  | N34: =SUM(weekly!#REF!) ->  | P34: =SUM(weekly!#REF!) ->  | Q34: 179.5 | R34: 117.3266518
A35: 2003-10-01 | B35: =SUM(weekly!#REF!) ->  | C35: =SUM(weekly!#REF!) ->  | D35: =SUM(weekly!#REF!) ->  | F35: =SUM(weekly!B145:B149) -> 17 | G35: =SUM(weekly!#REF!) ->  | H35: =SUM(weekly!#REF!) ->  | I35: =SUM(weekly!#REF!) ->  | K35: =SUM(weekly!C145:C149) -> 35 | L35: =SUM(weekly!#REF!) ->  | M35: =SUM(weekly!#REF!) ->  | N35: =SUM(weekly!#REF!) ->  | P35: =SUM(weekly!#REF!) ->  | Q35: 179.1 | R35: 117.0651996
A36: 2003-11-01 | B36: =SUM(weekly!#REF!) ->  | C36: =SUM(weekly!#REF!) ->  | D36: =SUM(weekly!#REF!) ->  | F36: =SUM(weekly!B150:B153) -> 18 | G36: =SUM(weekly!#REF!) ->  | H36: =SUM(weekly!#REF!) ->  | I36: =SUM(weekly!#REF!) ->  | K36: =SUM(weekly!C150:C153) -> 27 | L36: =SUM(weekly!#REF!) ->  | M36: =SUM(weekly!#REF!) ->  | N36: =SUM(weekly!#REF!) ->  | P36: =SUM(weekly!#REF!) ->  | Q36: 178.9 | R36: 116.9344736
A37: 2003-12-01 | B37: =SUM(weekly!#REF!) ->  | C37: =SUM(weekly!#REF!) ->  | D37: =SUM(weekly!#REF!) ->  | F37: =SUM(weekly!B154:B158) -> 18 | G37: =SUM(weekly!#REF!) ->  | H37: =SUM(weekly!#REF!) ->  | I37: =SUM(weekly!#REF!) ->  | K37: =SUM(weekly!C154:C158) -> 45 | L37: =SUM(weekly!#REF!) ->  | M37: =SUM(weekly!#REF!) ->  | N37: =SUM(weekly!#REF!) ->  | P37: =SUM(weekly!#REF!) ->  | Q37: 178.4 | R37: 116.6076584
A38: 2004-01-01 | B38: =SUM(weekly!#REF!) ->  | C38: =SUM(weekly!#REF!) ->  | D38: =SUM(weekly!#REF!) ->  | F38: =SUM(weekly!B159:B162) -> 26 | G38: =SUM(weekly!#REF!) ->  | H38: =SUM(weekly!#REF!) ->  | I38: =SUM(weekly!#REF!) ->  | K38: =SUM(weekly!C159:C162) -> 36 | L38: =SUM(weekly!#REF!) ->  | M38: =SUM(weekly!#REF!) ->  | N38: =SUM(weekly!#REF!) ->  | P38: =SUM(weekly!#REF!) ->  | Q38: 179.4 | R38: 117.2612887
A39: 2004-02-01 | B39: =SUM(weekly!#REF!) ->  | C39: =SUM(weekly!#REF!) ->  | D39: =SUM(weekly!#REF!) ->  | F39: =SUM(weekly!B163:B166) -> 11 | G39: =SUM(weekly!#REF!) ->  | H39: =SUM(weekly!#REF!) ->  | I39: =SUM(weekly!#REF!) ->  | K39: =SUM(weekly!C163:C166) -> 25 | L39: =SUM(weekly!#REF!) ->  | M39: =SUM(weekly!#REF!) ->  | N39: =SUM(weekly!#REF!) ->  | P39: =SUM(weekly!#REF!) ->  | Q39: 180.2 | R39: 117.784193
A40: 2004-03-01 | B40: =SUM(weekly!#REF!) ->  | C40: =SUM(weekly!#REF!) ->  | D40: =SUM(weekly!#REF!) ->  | F40: =SUM(weekly!B167:B171) -> 25 | G40: =SUM(weekly!#REF!) ->  | H40: =SUM(weekly!#REF!) ->  | I40: =SUM(weekly!#REF!) ->  | K40: =SUM(weekly!C167:C171) -> 60 | L40: =SUM(weekly!#REF!) ->  | M40: =SUM(weekly!#REF!) ->  | N40: =SUM(weekly!#REF!) ->  | P40: =SUM(weekly!#REF!) ->  | Q40: 181 | R40: 118.3070973
A41: 2004-04-01 | B41: =SUM(weekly!#REF!) ->  | C41: =SUM(weekly!#REF!) ->  | D41: =SUM(weekly!#REF!) ->  | F41: =SUM(weekly!B172:B175) -> 24 | G41: =SUM(weekly!#REF!) ->  | H41: =SUM(weekly!#REF!) ->  | I41: =SUM(weekly!#REF!) ->  | K41: =SUM(weekly!C172:C175) -> 34 | L41: =SUM(weekly!#REF!) ->  | M41: =SUM(weekly!#REF!) ->  | N41: =SUM(weekly!#REF!) ->  | P41: =SUM(weekly!#REF!) ->  | Q41: 181.5 | R41: 118.6339125
A42: 2004-05-01 | B42: =SUM(weekly!#REF!) ->  | C42: =SUM(weekly!#REF!) ->  | D42: =SUM(weekly!#REF!) ->  | F42: =SUM(weekly!B176:B179) -> 20 | G42: =SUM(weekly!#REF!) ->  | H42: =SUM(weekly!#REF!) ->  | I42: =SUM(weekly!#REF!) ->  | K42: =SUM(weekly!C176:C179) -> 47 | L42: =SUM(weekly!#REF!) ->  | M42: =SUM(weekly!#REF!) ->  | N42: =SUM(weekly!#REF!) ->  | P42: =SUM(weekly!#REF!) ->  | Q42: 182.9 | R42: 119.548995
A43: 2004-06-01 | B43: =SUM(weekly!#REF!) ->  | C43: =SUM(weekly!#REF!) ->  | D43: =SUM(weekly!#REF!) ->  | F43: =SUM(weekly!B180:B184) -> 25 | G43: =SUM(weekly!#REF!) ->  | H43: =SUM(weekly!#REF!) ->  | I43: =SUM(weekly!#REF!) ->  | K43: =SUM(weekly!C180:C184) -> 50 | L43: =SUM(weekly!#REF!) ->  | M43: =SUM(weekly!#REF!) ->  | N43: =SUM(weekly!#REF!) ->  | P43: =SUM(weekly!#REF!) ->  | Q43: 183.3 | R43: 119.8104472
A44: 2004-07-01 | B44: =SUM(weekly!#REF!) ->  | C44: =SUM(weekly!#REF!) ->  | D44: =SUM(weekly!#REF!) ->  | F44: =SUM(weekly!B185:B188) -> 15 | G44: =SUM(weekly!#REF!) ->  | H44: =SUM(weekly!#REF!) ->  | I44: =SUM(weekly!#REF!) ->  | K44: =SUM(weekly!C185:C188) -> 25 | L44: =SUM(weekly!#REF!) ->  | M44: =SUM(weekly!#REF!) ->  | N44: =SUM(weekly!#REF!) ->  | P44: =SUM(weekly!#REF!) ->  | Q44: 183.2 | R44: 119.7450842
A45: 2004-08-01 | B45: =SUM(weekly!#REF!) ->  | C45: =SUM(weekly!#REF!) ->  | D45: =SUM(weekly!#REF!) ->  | F45: =SUM(weekly!B193:B197) -> 12 | G45: =SUM(weekly!#REF!) ->  | H45: =SUM(weekly!#REF!) ->  | I45: =SUM(weekly!#REF!) ->  | K45: =SUM(weekly!C189:C192) -> 23 | L45: =SUM(weekly!#REF!) ->  | M45: =SUM(weekly!#REF!) ->  | N45: =SUM(weekly!#REF!) ->  | P45: =SUM(weekly!#REF!) ->  | Q45: 183.3 | R45: 119.8104472
A46: 2004-09-01 | B46: =SUM(weekly!#REF!) ->  | C46: =SUM(weekly!#REF!) ->  | D46: =SUM(weekly!#REF!) ->  | F46: =SUM(weekly!B190:B193) -> 10 | G46: =SUM(weekly!#REF!) ->  | H46: =SUM(weekly!#REF!) ->  | I46: =SUM(weekly!#REF!) ->  | K46: =SUM(weekly!C193:C197) -> 43 | L46: =SUM(weekly!#REF!) ->  | M46: =SUM(weekly!#REF!) ->  | N46: =SUM(weekly!#REF!) ->  | P46: =SUM(weekly!#REF!) ->  | Q46: 183.6 | R46: 120.0065363
A47: 2004-10-01 | B47: =SUM(weekly!#REF!) ->  | C47: =SUM(weekly!#REF!) ->  | D47: =SUM(weekly!#REF!) ->  | F47: =SUM(weekly!B198:B202) -> 15 | G47: =SUM(weekly!#REF!) ->  | H47: =SUM(weekly!#REF!) ->  | I47: =SUM(weekly!#REF!) ->  | K47: =SUM(weekly!C198:C201) -> 28 | L47: =SUM(weekly!#REF!) ->  | M47: =SUM(weekly!#REF!) ->  | N47: =SUM(weekly!#REF!) ->  | P47: =SUM(weekly!#REF!) ->  | Q47: 184.5 | R47: 120.5948036
A48: 2004-11-01 | B48: =SUM(weekly!#REF!) ->  | C48: =SUM(weekly!#REF!) ->  | D48: =SUM(weekly!#REF!) ->  | F48: =SUM(weekly!B202:B205) -> 10 | G48: =SUM(weekly!#REF!) ->  | H48: =SUM(weekly!#REF!) ->  | I48: =SUM(weekly!#REF!) ->  | K48: =SUM(weekly!C202:C205) -> 32 | L48: =SUM(weekly!#REF!) ->  | M48: =SUM(weekly!#REF!) ->  | N48: =SUM(weekly!#REF!) ->  | P48: =SUM(weekly!#REF!) ->  | Q48: 184.8 | R48: 120.7908928
A49: 2004-12-01 | B49: =SUM(weekly!#REF!) ->  | C49: =SUM(weekly!#REF!) ->  | D49: =SUM(weekly!#REF!) ->  | F49: =SUM(weekly!B206:B210) -> 39 | G49: =SUM(weekly!#REF!) ->  | H49: =SUM(weekly!#REF!) ->  | I49: =SUM(weekly!#REF!) ->  | K49: =SUM(weekly!C206:C210) -> 31 | L49: =SUM(weekly!#REF!) ->  | M49: =SUM(weekly!#REF!) ->  | N49: =SUM(weekly!#REF!) ->  | P49: =SUM(weekly!#REF!) ->  | Q49: 183.8 | R49: 120.1372624
A50: 2005-01-01 | B50: =SUM(weekly!#REF!) ->  | C50: =SUM(weekly!#REF!) ->  | D50: =SUM(weekly!#REF!) ->  | F50: =SUM(weekly!B211:B214) -> 12 | G50: =SUM(weekly!#REF!) ->  | H50: =SUM(weekly!#REF!) ->  | I50: =SUM(weekly!#REF!) ->  | K50: =SUM(weekly!C211:C214) -> 37 | L50: =SUM(weekly!#REF!) ->  | M50: =SUM(weekly!#REF!) ->  | N50: =SUM(weekly!#REF!) ->  | P50: =SUM(weekly!#REF!) ->  | Q50: 184.1 | R50: 120.3333515
A51: 2005-02-01 | B51: =SUM(weekly!#REF!) ->  | C51: =SUM(weekly!#REF!) ->  | D51: =SUM(weekly!#REF!) ->  | F51: =SUM(weekly!B215:B218) -> 19 | G51: =SUM(weekly!#REF!) ->  | H51: =SUM(weekly!#REF!) ->  | I51: =SUM(weekly!#REF!) ->  | K51: =SUM(weekly!C215:C218) -> 46 | L51: =SUM(weekly!#REF!) ->  | M51: =SUM(weekly!#REF!) ->  | N51: =SUM(weekly!#REF!) ->  | P51: =SUM(weekly!#REF!) ->  | Q51: 185.2 | R51: 121.0523449
A52: 2005-03-01 | B52: =SUM(weekly!#REF!) ->  | C52: =SUM(weekly!#REF!) ->  | D52: =SUM(weekly!#REF!) ->  | F52: =SUM(weekly!B219:B223) -> 29 | G52: =SUM(weekly!#REF!) ->  | H52: =SUM(weekly!#REF!) ->  | I52: =SUM(weekly!#REF!) ->  | K52: =SUM(weekly!C219:C223) -> 51 | L52: =SUM(weekly!#REF!) ->  | M52: =SUM(weekly!#REF!) ->  | N52: =SUM(weekly!#REF!) ->  | P52: =SUM(weekly!#REF!) ->  | Q52: 186.3 | R52: 121.7713383
A53: 2005-04-01 | B53: =SUM(weekly!#REF!) ->  | C53: =SUM(weekly!#REF!) ->  | D53: =SUM(weekly!#REF!) ->  | F53: =SUM(weekly!B224:B227) -> 12 | G53: =SUM(weekly!#REF!) ->  | H53: =SUM(weekly!#REF!) ->  | I53: =SUM(weekly!#REF!) ->  | K53: =SUM(weekly!C224:C227) -> 32 | L53: =SUM(weekly!#REF!) ->  | M53: =SUM(weekly!#REF!) ->  | N53: =SUM(weekly!#REF!) ->  | P53: =SUM(weekly!#REF!) ->  | Q53: 187.7 | R53: 122.6864208
A54: 2005-05-01 | B54: =SUM(weekly!#REF!) ->  | C54: =SUM(weekly!#REF!) ->  | D54: =SUM(weekly!#REF!) ->  | F54: =SUM(weekly!B228:B231) -> 22 | G54: =SUM(weekly!#REF!) ->  | H54: =SUM(weekly!#REF!) ->  | I54: =SUM(weekly!#REF!) ->  | K54: =SUM(weekly!C228:C231) -> 53 | L54: =SUM(weekly!#REF!) ->  | M54: =SUM(weekly!#REF!) ->  | N54: =SUM(weekly!#REF!) ->  | P54: =SUM(weekly!#REF!) ->  | Q54: 187.4 | R54: 122.4903317
A55: 2005-06-01 | B55: =SUM(weekly!#REF!) ->  | C55: =SUM(weekly!#REF!) ->  | D55: =SUM(weekly!#REF!) ->  | F55: =SUM(weekly!B232:B236) -> 33 | G55: =SUM(weekly!#REF!) ->  | H55: =SUM(weekly!#REF!) ->  | I55: =SUM(weekly!#REF!) ->  | K55: =SUM(weekly!C232:C236) -> 51 | L55: =SUM(weekly!#REF!) ->  | M55: =SUM(weekly!#REF!) ->  | N55: =SUM(weekly!#REF!) ->  | P55: =SUM(weekly!#REF!) ->  | Q55: 187.8 | R55: 122.7517839
A56: 2005-07-01 | B56: =SUM(weekly!#REF!) ->  | C56: =SUM(weekly!#REF!) ->  | D56: =SUM(weekly!#REF!) ->  | F56: =SUM(weekly!B237:B240) -> 16 | G56: =SUM(weekly!#REF!) ->  | H56: =SUM(weekly!#REF!) ->  | I56: =SUM(weekly!#REF!) ->  | K56: =SUM(weekly!C237:C240) -> 37 | L56: =SUM(weekly!#REF!) ->  | M56: =SUM(weekly!#REF!) ->  | N56: =SUM(weekly!#REF!) ->  | P56: =SUM(weekly!#REF!) ->  | Q56: 188.4 | R56: 123.1439621
A57: 2005-08-01 | B57: =SUM(weekly!#REF!) ->  | C57: =SUM(weekly!#REF!) ->  | D57: =SUM(weekly!#REF!) ->  | F57: =SUM(weekly!B241:B245) -> 27 | G57: =SUM(weekly!#REF!) ->  | H57: =SUM(weekly!#REF!) ->  | I57: =SUM(weekly!#REF!) ->  | K57: =SUM(weekly!C241:C245) -> 46 | L57: =SUM(weekly!#REF!) ->  | M57: =SUM(weekly!#REF!) ->  | N57: =SUM(weekly!#REF!) ->  | P57: =SUM(weekly!#REF!) ->  | Q57: 189.7 | R57: 123.9936816
A58: 2005-09-01 | B58: =SUM(weekly!#REF!) ->  | C58: =SUM(weekly!#REF!) ->  | D58: =SUM(weekly!#REF!) ->  | F58: =SUM(weekly!B246:B249) -> 10 | G58: =SUM(weekly!#REF!) ->  | H58: =SUM(weekly!#REF!) ->  | I58: =SUM(weekly!#REF!) ->  | K58: =SUM(weekly!C246:C249) -> 29 | L58: =SUM(weekly!#REF!) ->  | M58: =SUM(weekly!#REF!) ->  | N58: =SUM(weekly!#REF!) ->  | P58: =SUM(weekly!#REF!) ->  | Q58: 192.5 | R58: 125.8238466
A59: 2005-10-01 | B59: =SUM(weekly!#REF!) ->  | C59: =SUM(weekly!#REF!) ->  | D59: =SUM(weekly!#REF!) ->  | F59: =SUM(weekly!B250:B253) -> 23 | G59: =SUM(weekly!#REF!) ->  | H59: =SUM(weekly!#REF!) ->  | I59: =SUM(weekly!#REF!) ->  | J59: =(I59/R59)*100 ->  | K59: =SUM(weekly!C250:C253) -> 34 | L59: =SUM(weekly!#REF!) ->  | M59: =SUM(weekly!#REF!) ->  | N59: =SUM(weekly!#REF!) ->  | P59: =SUM(weekly!#REF!) ->  | Q59: 192.1 | R59: 125.5623945
A60: 2005-11-01 | B60: =SUM(weekly!#REF!) ->  | C60: =SUM(weekly!#REF!) ->  | D60: =SUM(weekly!#REF!) ->  | F60: =SUM(weekly!B254:B258) -> 16 | G60: =SUM(weekly!#REF!) ->  | H60: =SUM(weekly!#REF!) ->  | I60: =SUM(weekly!#REF!) ->  | K60: =SUM(weekly!C254:C258) -> 45 | L60: =SUM(weekly!#REF!) ->  | M60: =SUM(weekly!#REF!) ->  | N60: =SUM(weekly!#REF!) ->  | P60: =SUM(weekly!#REF!) ->  | Q60: 190.3 | R60: 124.3858598
A61: 2005-12-01 | B61: =SUM(weekly!#REF!) ->  | C61: =SUM(weekly!#REF!) ->  | D61: =SUM(weekly!#REF!) ->  | F61: =SUM(weekly!B259:B262) -> 18 | G61: =SUM(weekly!#REF!) ->  | H61: =SUM(weekly!#REF!) ->  | I61: =SUM(weekly!#REF!) ->  | K61: =SUM(weekly!C259:C262) -> 28 | L61: =SUM(weekly!#REF!) ->  | M61: =SUM(weekly!#REF!) ->  | N61: =SUM(weekly!#REF!) ->  | P61: =SUM(weekly!#REF!) ->  | Q61: 189.7 | R61: 123.9936816
A62: 2006-01-01 | B62: =SUM(weekly!#REF!) ->  | C62: =SUM(weekly!#REF!) ->  | D62: =SUM(weekly!#REF!) ->  | F62: =SUM(weekly!B263:B266) -> 29 | G62: =SUM(weekly!#REF!) ->  | H62: =SUM(weekly!#REF!) ->  | I62: =SUM(weekly!#REF!) ->  | K62: =SUM(weekly!C263:C266) -> 37 | L62: =SUM(weekly!#REF!) ->  | M62: =SUM(weekly!#REF!) ->  | N62: =SUM(weekly!#REF!) ->  | P62: =SUM(weekly!#REF!) ->  | Q62: 190.8 | R62: 124.712675
A63: 2006-02-01 | B63: =SUM(weekly!#REF!) ->  | C63: =SUM(weekly!#REF!) ->  | D63: =SUM(weekly!#REF!) ->  | F63: =SUM(weekly!B267:B270) -> 23 | G63: =SUM(weekly!#REF!) ->  | H63: =SUM(weekly!#REF!) ->  | I63: =SUM(weekly!#REF!) ->  | K63: =SUM(weekly!C267:C270) -> 40 | L63: =SUM(weekly!#REF!) ->  | M63: =SUM(weekly!#REF!) ->  | N63: =SUM(weekly!#REF!) ->  | P63: =SUM(weekly!#REF!) ->  | Q63: 190.7 | R63: 124.6473119
A64: 2006-03-01 | B64: =SUM(weekly!#REF!) ->  | C64: =SUM(weekly!#REF!) ->  | D64: =SUM(weekly!#REF!) ->  | F64: =SUM(weekly!B271:B275) -> 25 | G64: =SUM(weekly!#REF!) ->  | H64: =SUM(weekly!#REF!) ->  | I64: =SUM(weekly!#REF!) ->  | K64: =SUM(weekly!C271:C275) -> 54 | L64: =SUM(weekly!#REF!) ->  | M64: =SUM(weekly!#REF!) ->  | N64: =SUM(weekly!#REF!) ->  | P64: =SUM(weekly!#REF!) ->  | Q64: 192 | R64: 125.4970314
A65: 2006-04-01 | B65: =SUM(weekly!#REF!) ->  | C65: =SUM(weekly!#REF!) ->  | D65: =SUM(weekly!#REF!) ->  | F65: =SUM(weekly!B276:B279) -> 35 | G65: =SUM(weekly!#REF!) ->  | H65: =SUM(weekly!#REF!) ->  | I65: =SUM(weekly!#REF!) ->  | K65: =SUM(weekly!C276:C279) -> 45 | L65: =SUM(weekly!#REF!) ->  | M65: =SUM(weekly!#REF!) ->  | N65: =SUM(weekly!#REF!) ->  | P65: =SUM(weekly!#REF!) ->  | Q65: 193 | R65: 126.1506618
A66: 2006-05-01 | B66: =SUM(weekly!#REF!) ->  | C66: =SUM(weekly!#REF!) ->  | D66: =SUM(weekly!#REF!) ->  | F66: =SUM(weekly!B280:B284) -> 18 | G66: =SUM(weekly!#REF!) ->  | H66: =SUM(weekly!#REF!) ->  | I66: =SUM(weekly!#REF!) ->  | K66: =SUM(weekly!C280:C284) -> 46 | L66: =SUM(weekly!#REF!) ->  | M66: =SUM(weekly!#REF!) ->  | N66: =SUM(weekly!#REF!) ->  | P66: =SUM(weekly!#REF!) ->  | Q66: 193.6 | R66: 126.54284
A67: 2006-06-01 | B67: =SUM(weekly!#REF!) ->  | C67: =SUM(weekly!#REF!) ->  | D67: =SUM(weekly!#REF!) ->  | F67: =SUM(weekly!B285:B288) -> 23 | G67: =SUM(weekly!#REF!) ->  | H67: =SUM(weekly!#REF!) ->  | I67: =SUM(weekly!#REF!) ->  | K67: =SUM(weekly!C285:C288) -> 37 | L67: =SUM(weekly!#REF!) ->  | M67: =SUM(weekly!#REF!) ->  | N67: =SUM(weekly!#REF!) ->  | P67: =SUM(weekly!#REF!) ->  | Q67: 194.1 | R67: 126.8696552
A68: 2006-07-01 | B68: =SUM(weekly!#REF!) ->  | C68: =SUM(weekly!#REF!) ->  | D68: =SUM(weekly!#REF!) ->  | F68: =SUM(weekly!B289:B292) -> 14 | G68: =SUM(weekly!#REF!) ->  | H68: =SUM(weekly!#REF!) ->  | I68: =SUM(weekly!#REF!) ->  | K68: =SUM(weekly!C289:C292) -> 41 | L68: =SUM(weekly!#REF!) ->  | M68: =SUM(weekly!#REF!) ->  | N68: =SUM(weekly!#REF!) ->  | P68: =SUM(weekly!#REF!) ->  | Q68: 194.6 | R68: 127.1964704
A69: 2006-08-01 | B69: =SUM(weekly!#REF!) ->  | C69: =SUM(weekly!#REF!) ->  | D69: =SUM(weekly!#REF!) ->  | F69: =SUM(weekly!B293:B297) -> 24 | G69: =SUM(weekly!#REF!) ->  | H69: =SUM(weekly!#REF!) ->  | I69: =SUM(weekly!#REF!) ->  | K69: =SUM(weekly!C293:C297) -> 35 | L69: =SUM(weekly!#REF!) ->  | M69: =SUM(weekly!#REF!) ->  | N69: =SUM(weekly!#REF!) ->  | P69: =SUM(weekly!#REF!) ->  | Q69: 195.1 | R69: 127.5232856
A70: 2006-09-01 | B70: =SUM(weekly!#REF!) ->  | C70: =SUM(weekly!#REF!) ->  | D70: =SUM(weekly!#REF!) ->  | F70: =SUM(weekly!B298:B301) -> 16 | G70: =SUM(weekly!#REF!) ->  | H70: =SUM(weekly!#REF!) ->  | I70: =SUM(weekly!#REF!) ->  | K70: =SUM(weekly!C298:C301) -> 53 | L70: =SUM(weekly!#REF!) ->  | M70: =SUM(weekly!#REF!) ->  | N70: =SUM(weekly!#REF!) ->  | P70: =SUM(weekly!#REF!) ->  | Q70: 193.7 | R70: 126.6082031
A71: 2006-10-01 | B71: =SUM(weekly!#REF!) ->  | C71: =SUM(weekly!#REF!) ->  | D71: =SUM(weekly!#REF!) ->  | F71: =SUM(weekly!B302:B305) -> 13 | G71: =SUM(weekly!#REF!) ->  | H71: =SUM(weekly!#REF!) ->  | I71: =SUM(weekly!#REF!) ->  | K71: =SUM(weekly!C302:C305) -> 19 | L71: =SUM(weekly!#REF!) ->  | M71: =SUM(weekly!#REF!) ->  | N71: =SUM(weekly!#REF!) ->  | P71: =SUM(weekly!#REF!) ->  | Q71: 192.3 | R71: 125.6931205
A72: 2006-11-01 | B72: =SUM(weekly!#REF!) ->  | C72: =SUM(weekly!#REF!) ->  | D72: =SUM(weekly!#REF!) ->  | F72: =SUM(weekly!B306:B310) -> 19 | G72: =SUM(weekly!#REF!) ->  | H72: =SUM(weekly!#REF!) ->  | I72: =SUM(weekly!#REF!) ->  | K72: =SUM(weekly!C306:C310) -> 45 | L72: =SUM(weekly!#REF!) ->  | M72: =SUM(weekly!#REF!) ->  | N72: =SUM(weekly!#REF!) ->  | P72: =SUM(weekly!#REF!) ->  | Q72: 192.8 | R72: 126.0199357
A73: 2006-12-01 | B73: =SUM(weekly!#REF!) ->  | C73: =SUM(weekly!#REF!) ->  | D73: =SUM(weekly!#REF!) ->  | F73: =SUM(weekly!B311:B314) -> 21 | G73: =SUM(weekly!#REF!) ->  | H73: =SUM(weekly!#REF!) ->  | I73: =SUM(weekly!#REF!) ->  | K73: =SUM(weekly!C311:C314) -> 36 | L73: =SUM(weekly!#REF!) ->  | M73: =SUM(weekly!#REF!) ->  | N73: =SUM(weekly!#REF!) ->  | P73: =SUM(weekly!#REF!) ->  | Q73: 192.9 | R73: =(Q73/$S$2)*100 -> 126.0852988
A74: 2007-01-01 | B74: =SUM(weekly!#REF!) ->  | C74: =SUM(weekly!#REF!) ->  | D74: =SUM(weekly!#REF!) ->  | E74: =(D74/R74)*100 ->  | F74: =SUM(weekly!B315:B319) -> 28 | G74: =SUM(weekly!#REF!) ->  | H74: =SUM(weekly!#REF!) ->  | I74: =SUM(weekly!#REF!) ->  | J74: =(I74/R74)*100 ->  | K74: =SUM(weekly!C315:C319) -> 44 | L74: =SUM(weekly!#REF!) ->  | M74: =SUM(weekly!#REF!) ->  | N74: =SUM(weekly!#REF!) ->  | O74: =(N74/R74)*100 ->  | P74: =SUM(weekly!#REF!) ->  | Q74: 193.1 | R74: 126.2160248
A75: 2007-02-01 | B75: =SUM(weekly!#REF!) ->  | C75: =SUM(weekly!#REF!) ->  | D75: =SUM(weekly!#REF!) ->  | F75: =SUM(weekly!B320:B323) -> 19 | G75: =SUM(weekly!#REF!) ->  | H75: =SUM(weekly!#REF!) ->  | I75: =SUM(weekly!#REF!) ->  | K75: =SUM(weekly!C320:C323) -> 46 | L75: =SUM(weekly!#REF!) ->  | M75: =SUM(weekly!#REF!) ->  | N75: =SUM(weekly!#REF!) ->  | P75: =SUM(weekly!#REF!) ->  | Q75: 194.5 | R75: 127.1311074
A76: 2007-03-01 | B76: =SUM(weekly!#REF!) ->  | C76: =SUM(weekly!#REF!) ->  | D76: =SUM(weekly!#REF!) ->  | F76: =SUM(weekly!B324:B327) -> 23 | G76: =SUM(weekly!#REF!) ->  | H76: =SUM(weekly!#REF!) ->  | I76: =SUM(weekly!#REF!) ->  | K76: =SUM(weekly!C324:C327) -> 40 | L76: =SUM(weekly!#REF!) ->  | M76: =SUM(weekly!#REF!) ->  | N76: =SUM(weekly!#REF!) ->  | P76: =SUM(weekly!#REF!) ->  | Q76: 196.4 | R76: 128.3730051
A77: 2007-04-01 | B77: =SUM(weekly!#REF!) ->  | C77: =SUM(weekly!#REF!) ->  | D77: =SUM(weekly!#REF!) ->  | F77: =SUM(weekly!B328:B332) -> 32 | G77: =SUM(weekly!#REF!) ->  | H77: =SUM(weekly!#REF!) ->  | I77: =SUM(weekly!#REF!) ->  | K77: =SUM(weekly!C328:C332) -> 55 | L77: =SUM(weekly!#REF!) ->  | M77: =SUM(weekly!#REF!) ->  | N77: =SUM(weekly!#REF!) ->  | P77: =SUM(weekly!#REF!) ->  | Q77: 197.4 | R77: 129.0266354
A78: 2007-05-01 | B78: =SUM(weekly!#REF!) ->  | C78: =SUM(weekly!#REF!) ->  | D78: =SUM(weekly!#REF!) ->  | F78: =SUM(weekly!B333:B336) -> 26 | G78: =SUM(weekly!#REF!) ->  | H78: =SUM(weekly!#REF!) ->  | I78: =SUM(weekly!#REF!) ->  | K78: =SUM(weekly!C333:C336) -> 33 | L78: =SUM(weekly!#REF!) ->  | M78: =SUM(weekly!#REF!) ->  | N78: =SUM(weekly!#REF!) ->  | P78: =SUM(weekly!#REF!) ->  | Q78: 199.2 | R78: 130.2031701
A79: 2007-06-01 | B79: =SUM(weekly!#REF!) ->  | C79: =SUM(weekly!#REF!) ->  | D79: =SUM(weekly!#REF!) ->  | F79: =SUM(weekly!B337:B340) -> 29 | G79: =SUM(weekly!#REF!) ->  | H79: =SUM(weekly!#REF!) ->  | I79: =SUM(weekly!#REF!) ->  | K79: =SUM(weekly!C337:C340) -> 28 | L79: =SUM(weekly!#REF!) ->  | M79: =SUM(weekly!#REF!) ->  | N79: =SUM(weekly!#REF!) ->  | P79: =SUM(weekly!#REF!) ->  | Q79: 199.3 | R79: 130.2685331
A80: 2007-07-01 | B80: =SUM(weekly!#REF!) ->  | C80: =SUM(weekly!#REF!) ->  | D80: =SUM(weekly!#REF!) ->  | F80: =SUM(weekly!B341:B345) -> 22 | G80: =SUM(weekly!#REF!) ->  | H80: =SUM(weekly!#REF!) ->  | I80: =SUM(weekly!#REF!) ->  | K80: =SUM(weekly!C341:C345) -> 41 | L80: =SUM(weekly!#REF!) ->  | M80: =SUM(weekly!#REF!) ->  | N80: =SUM(weekly!#REF!) ->  | P80: =SUM(weekly!#REF!) ->  | Q80: 199 | R80: 130.072444
A81: 2007-08-01 | B81: =SUM(weekly!#REF!) ->  | C81: =SUM(weekly!#REF!) ->  | D81: =SUM(weekly!#REF!) ->  | F81: =SUM(weekly!B346:B348) -> 12 | G81: =SUM(weekly!#REF!) ->  | H81: =SUM(weekly!#REF!) ->  | I81: =SUM(weekly!#REF!) ->  | K81: =SUM(weekly!C346:C348) -> 33 | L81: =SUM(weekly!#REF!) ->  | M81: =SUM(weekly!#REF!) ->  | N81: =SUM(weekly!#REF!) ->  | P81: =SUM(weekly!#REF!) ->  | Q81: 198.6 | R81: 129.8109919
A82: 2007-09-01 | B82: =SUM(weekly!#REF!) ->  | C82: =SUM(weekly!#REF!) ->  | D82: =SUM(weekly!#REF!) ->  | F82: =SUM(weekly!B349:B354) -> 32 | G82: =SUM(weekly!#REF!) ->  | H82: =SUM(weekly!#REF!) ->  | I82: =SUM(weekly!#REF!) ->  | K82: =SUM(weekly!C349:C354) -> 75 | L82: =SUM(weekly!#REF!) ->  | M82: =SUM(weekly!#REF!) ->  | N82: =SUM(weekly!#REF!) ->  | P82: =SUM(weekly!#REF!) ->  | Q82: 199.7 | R82: 130.5299853
A83: 2007-10-01 | B83: =SUM(weekly!#REF!) ->  | C83: =SUM(weekly!#REF!) ->  | D83: =SUM(weekly!#REF!) ->  | F83: =SUM(weekly!B355:B358) -> 23 | G83: =SUM(weekly!#REF!) ->  | H83: =SUM(weekly!#REF!) ->  | I83: =SUM(weekly!#REF!) ->  | K83: =SUM(weekly!C355:C358) -> 36 | L83: =SUM(weekly!#REF!) ->  | M83: =SUM(weekly!#REF!) ->  | N83: =SUM(weekly!#REF!) ->  | P83: =SUM(weekly!#REF!) ->  | Q83: 199.5 | R83: 130.3992592
A84: 2007-11-01 | B84: =SUM(weekly!#REF!) ->  | C84: =SUM(weekly!#REF!) ->  | D84: =SUM(weekly!#REF!) ->  | F84: =SUM(weekly!B359:B362) -> 13 | G84: =SUM(weekly!#REF!) ->  | H84: =SUM(weekly!#REF!) ->  | I84: =SUM(weekly!#REF!) ->  | K84: =SUM(weekly!C359:C362) -> 41 | L84: =SUM(weekly!#REF!) ->  | M84: =SUM(weekly!#REF!) ->  | N84: =SUM(weekly!#REF!) ->  | P84: =SUM(weekly!#REF!) ->  | Q84: 200.8 | R84: 131.2489787
A85: 2007-12-01 | B85: =SUM(weekly!#REF!) ->  | C85: =SUM(weekly!#REF!) ->  | D85: =SUM(weekly!#REF!) ->  | F85: =SUM(weekly!B363:B367) -> 23 | G85: =SUM(weekly!#REF!) ->  | H85: =SUM(weekly!#REF!) ->  | I85: =SUM(weekly!#REF!) ->  | K85: =SUM(weekly!C363:C367) -> 40 | L85: =SUM(weekly!#REF!) ->  | M85: =SUM(weekly!#REF!) ->  | N85: =SUM(weekly!#REF!) ->  | P85: =SUM(weekly!#REF!) ->  | Q85: 200.2 | R85: 130.8568005
A86: 2008-01-01 | B86: =SUM(weekly!#REF!) ->  | C86: =SUM(weekly!#REF!) ->  | D86: =SUM(weekly!#REF!) ->  | F86: =SUM(weekly!B368:B371) -> 20 | G86: =SUM(weekly!#REF!) ->  | H86: =SUM(weekly!#REF!) ->  | I86: =SUM(weekly!#REF!) ->  | K86: =SUM(weekly!C368:C371) -> 48 | L86: =SUM(weekly!#REF!) ->  | M86: =SUM(weekly!#REF!) ->  | N86: =SUM(weekly!#REF!) ->  | P86: =SUM(weekly!#REF!) ->  | Q86: 201.4 | R86: 131.6411569
A87: 2008-02-01 | B87: =SUM(weekly!#REF!) ->  | C87: =SUM(weekly!#REF!) ->  | D87: =SUM(weekly!#REF!) ->  | F87: =SUM(weekly!B372:B375) -> 22 | G87: =SUM(weekly!#REF!) ->  | H87: =SUM(weekly!#REF!) ->  | I87: =SUM(weekly!#REF!) ->  | K87: =SUM(weekly!C372:C375) -> 31 | L87: =SUM(weekly!#REF!) ->  | M87: =SUM(weekly!#REF!) ->  | N87: =SUM(weekly!#REF!) ->  | P87: =SUM(weekly!#REF!) ->  | Q87: 201.9 | R87: 131.9679721
A88: 2008-03-01 | B88: =SUM(weekly!#REF!) ->  | C88: =SUM(weekly!#REF!) ->  | D88: =SUM(weekly!#REF!) ->  | F88: =SUM(weekly!B376:B380) -> 34 | G88: =SUM(weekly!#REF!) ->  | H88: =SUM(weekly!#REF!) ->  | I88: =SUM(weekly!#REF!) ->  | K88: =SUM(weekly!C376:C380) -> 53 | L88: =SUM(weekly!#REF!) ->  | M88: =SUM(weekly!#REF!) ->  | N88: =SUM(weekly!#REF!) ->  | P88: =SUM(weekly!#REF!) ->  | Q88: 203.7 | R88: 133.1445068
A89: 2008-04-01 | B89: =SUM(weekly!#REF!) ->  | C89: =SUM(weekly!#REF!) ->  | D89: =SUM(weekly!#REF!) ->  | F89: =SUM(weekly!B381:B384) -> 28 | G89: =SUM(weekly!#REF!) ->  | H89: =SUM(weekly!#REF!) ->  | I89: =SUM(weekly!#REF!) ->  | K89: =SUM(weekly!C381:C384) -> 54 | L89: =SUM(weekly!#REF!) ->  | M89: =SUM(weekly!#REF!) ->  | N89: =SUM(weekly!#REF!) ->  | P89: =SUM(weekly!#REF!) ->  | Q89: 205.4 | R89: 134.2556784
A90: 2008-05-01 | B90: =SUM(weekly!#REF!) ->  | C90: =SUM(weekly!#REF!) ->  | D90: =SUM(weekly!#REF!) ->  | F90: =SUM(weekly!B385:B388) -> 42 | G90: =SUM(weekly!#REF!) ->  | H90: =SUM(weekly!#REF!) ->  | I90: =SUM(weekly!#REF!) ->  | K90: =SUM(weekly!C385:C388) -> 33 | L90: =SUM(weekly!#REF!) ->  | M90: =SUM(weekly!#REF!) ->  | N90: =SUM(weekly!#REF!) ->  | P90: =SUM(weekly!#REF!) ->  | Q90: 207.2 | R90: 135.4322131
A91: 2008-06-01 | B91: =SUM(weekly!#REF!) ->  | C91: =SUM(weekly!#REF!) ->  | D91: =SUM(weekly!#REF!) ->  | F91: =SUM(weekly!B389:B392) -> 8 | G91: =SUM(weekly!#REF!) ->  | H91: =SUM(weekly!#REF!) ->  | I91: =SUM(weekly!#REF!) ->  | K91: =SUM(weekly!C389:C392) -> 11 | L91: =SUM(weekly!#REF!) ->  | M91: =SUM(weekly!#REF!) ->  | N91: =SUM(weekly!#REF!) ->  | P91: =SUM(weekly!#REF!) ->  | Q91: 209 | R91: 136.6087478
A92: 2008-07-01 | B92: =SUM(weekly!#REF!) ->  | C92: =SUM(weekly!#REF!) ->  | D92: =SUM(weekly!#REF!) ->  | F92: =SUM(weekly!B393:B397) -> 27 | G92: =SUM(weekly!#REF!) ->  | H92: =SUM(weekly!#REF!) ->  | I92: =SUM(weekly!#REF!) ->  | K92: =SUM(weekly!C393:C397) -> 49 | L92: =SUM(weekly!#REF!) ->  | M92: =SUM(weekly!#REF!) ->  | N92: =SUM(weekly!#REF!) ->  | P92: =SUM(weekly!#REF!) ->  | Q92: 210.1 | R92: 137.3277412
A93: 2008-08-01 | B93: =SUM(weekly!#REF!) ->  | C93: =SUM(weekly!#REF!) ->  | D93: =SUM(weekly!#REF!) ->  | F93: =SUM(weekly!B398:B401) -> 18 | G93: =SUM(weekly!#REF!) ->  | H93: =SUM(weekly!#REF!) ->  | I93: =SUM(weekly!#REF!) ->  | K93: =SUM(weekly!C398:C401) -> 25 | L93: =SUM(weekly!#REF!) ->  | M93: =SUM(weekly!#REF!) ->  | N93: =SUM(weekly!#REF!) ->  | P93: =SUM(weekly!#REF!) ->  | Q93: 209.4 | R93: 136.8701999
A94: 2008-09-01 | B94: =SUM(weekly!#REF!) ->  | C94: =SUM(weekly!#REF!) ->  | D94: =SUM(weekly!#REF!) ->  | F94: =SUM(weekly!B402:B405) -> 10 | G94: =SUM(weekly!#REF!) ->  | H94: =SUM(weekly!#REF!) ->  | I94: =SUM(weekly!#REF!) ->  | K94: =SUM(weekly!C402:C405) -> 29 | L94: =SUM(weekly!#REF!) ->  | M94: =SUM(weekly!#REF!) ->  | N94: =SUM(weekly!#REF!) ->  | P94: =SUM(weekly!#REF!) ->  | Q94: 209.3 | R94: 136.8048369
A95: 2008-10-01 | B95: =SUM(weekly!#REF!) ->  | C95: =SUM(weekly!#REF!) ->  | D95: =SUM(weekly!#REF!) ->  | F95: =SUM(weekly!B406:B410) -> 18 | G95: =SUM(weekly!#REF!) ->  | H95: =SUM(weekly!#REF!) ->  | I95: =SUM(weekly!#REF!) ->  | K95: =SUM(weekly!C406:C410) -> 35 | L95: =SUM(weekly!#REF!) ->  | M95: =SUM(weekly!#REF!) ->  | N95: =SUM(weekly!#REF!) ->  | P95: =SUM(weekly!#REF!) ->  | Q95: 206 | R95: 134.6478566
A96: 2008-11-01 | B96: =SUM(weekly!#REF!) ->  | C96: =SUM(weekly!#REF!) ->  | D96: =SUM(weekly!#REF!) ->  | F96: =SUM(weekly!B411:B414) -> 10 | G96: =SUM(weekly!#REF!) ->  | H96: =SUM(weekly!#REF!) ->  | I96: =SUM(weekly!#REF!) ->  | K96: =SUM(weekly!C411:C414) -> 35 | L96: =SUM(weekly!#REF!) ->  | M96: =SUM(weekly!#REF!) ->  | N96: =SUM(weekly!#REF!) ->  | P96: =SUM(weekly!#REF!) ->  | Q96: 201.7 | R96: 131.837246
A97: 2008-12-01 | B97: =SUM(weekly!#REF!) ->  | C97: =SUM(weekly!#REF!) ->  | D97: =SUM(weekly!#REF!) ->  | F97: =SUM(weekly!B415:B419) -> 26 | G97: =SUM(weekly!#REF!) ->  | H97: =SUM(weekly!#REF!) ->  | I97: =SUM(weekly!#REF!) ->  | K97: =SUM(weekly!C415:C419) -> 46 | L97: =SUM(weekly!#REF!) ->  | M97: =SUM(weekly!#REF!) ->  | N97: =SUM(weekly!#REF!) ->  | P97: =SUM(weekly!#REF!) ->  | Q97: 199.6 | R97: 130.4646223
A98: 2009-01-01 | B98: =SUM(weekly!#REF!) ->  | C98: =SUM(weekly!#REF!) ->  | D98: =SUM(weekly!#REF!) ->  | F98: =SUM(weekly!B420:B423) -> 17 | G98: =SUM(weekly!#REF!) ->  | H98: =SUM(weekly!#REF!) ->  | I98: =SUM(weekly!#REF!) ->  | K98: =SUM(weekly!C420:C423) -> 30 | L98: =SUM(weekly!#REF!) ->  | M98: =SUM(weekly!#REF!) ->  | N98: =SUM(weekly!#REF!) ->  | P98: =SUM(weekly!#REF!) ->  | Q98: 200.8 | R98: 131.2489787
A99: 2009-02-01 | B99: =SUM(weekly!#REF!) ->  | C99: =SUM(weekly!#REF!) ->  | D99: =SUM(weekly!#REF!) ->  | F99: =SUM(weekly!B424:B427) -> 10 | G99: =SUM(weekly!#REF!) ->  | H99: =SUM(weekly!#REF!) ->  | I99: =SUM(weekly!#REF!) ->  | K99: =SUM(weekly!C424:C427) -> 38 | L99: =SUM(weekly!#REF!) ->  | M99: =SUM(weekly!#REF!) ->  | N99: =SUM(weekly!#REF!) ->  | P99: =SUM(weekly!#REF!) ->  | Q99: 201.5 | R99: 131.70652
A100: 2009-03-01 | B100: =SUM(weekly!#REF!) ->  | C100: =SUM(weekly!#REF!) ->  | D100: =SUM(weekly!#REF!) ->  | F100: =SUM(weekly!B428:B431) -> 18 | G100: =SUM(weekly!#REF!) ->  | H100: =SUM(weekly!#REF!) ->  | I100: =SUM(weekly!#REF!) ->  | K100: =SUM(weekly!C428:C431) -> 42 | L100: =SUM(weekly!#REF!) ->  | M100: =SUM(weekly!#REF!) ->  | N100: =SUM(weekly!#REF!) ->  | P100: =SUM(weekly!#REF!) ->  | Q100: 202.02 | R100: 132.0464078
A101: 2009-04-01 | B101: =SUM(weekly!#REF!) ->  | C101: =SUM(weekly!#REF!) ->  | D101: =SUM(weekly!#REF!) ->  | F101: =SUM(weekly!B432:B436) -> 25 | G101: =SUM(weekly!#REF!) ->  | H101: =SUM(weekly!#REF!) ->  | I101: =SUM(weekly!#REF!) ->  | K101: =SUM(weekly!C432:C436) -> 42 | L101: =SUM(weekly!#REF!) ->  | M101: =SUM(weekly!#REF!) ->  | N101: =SUM(weekly!#REF!) ->  | P101: =SUM(weekly!#REF!) ->  | Q101: 202.3 | R101: 132.2294243
A102: 2009-05-01 | B102: =SUM(weekly!#REF!) ->  | C102: =SUM(weekly!#REF!) ->  | D102: =SUM(weekly!#REF!) ->  | F102: =SUM(weekly!B437:B440) -> 18 | G102: =SUM(weekly!#REF!) ->  | H102: =SUM(weekly!#REF!) ->  | I102: =SUM(weekly!#REF!) ->  | K102: =SUM(weekly!C437:C440) -> 31 | L102: =SUM(weekly!#REF!) ->  | M102: =SUM(weekly!#REF!) ->  | N102: =SUM(weekly!#REF!) ->  | P102: =SUM(weekly!#REF!) ->  | Q102: 203.2 | R102: 132.8176916
A103: 2009-06-01 | B103: =SUM(weekly!#REF!) ->  | C103: =SUM(weekly!#REF!) ->  | D103: =SUM(weekly!#REF!) ->  | F103: =SUM(weekly!B441:B444) -> 12 | G103: =SUM(weekly!#REF!) ->  | H103: =SUM(weekly!#REF!) ->  | I103: =SUM(weekly!#REF!) ->  | K103: =SUM(weekly!C441:C444) -> 27 | L103: =SUM(weekly!#REF!) ->  | M103: =SUM(weekly!#REF!) ->  | N103: =SUM(weekly!#REF!) ->  | P103: =SUM(weekly!#REF!) ->  | Q103: 205.4 | R103: 134.2556784
A104: 2009-07-01 | B104: =SUM(weekly!#REF!) ->  | C104: =SUM(weekly!#REF!) ->  | D104: =SUM(weekly!#REF!) ->  | F104: =SUM(weekly!B445:B449) -> 18 | G104: =SUM(weekly!#REF!) ->  | H104: =SUM(weekly!#REF!) ->  | I104: =SUM(weekly!#REF!) ->  | K104: =SUM(weekly!C445:C449) -> 40 | L104: =SUM(weekly!#REF!) ->  | M104: =SUM(weekly!#REF!) ->  | N104: =SUM(weekly!#REF!) ->  | P104: =SUM(weekly!#REF!) ->  | Q104: 204.8 | R104: 133.8635002
A105: 2009-08-01 | B105: =SUM(weekly!#REF!) ->  | C105: =SUM(weekly!#REF!) ->  | D105: =SUM(weekly!#REF!) ->  | F105: =SUM(weekly!B450:B453) -> 17 | G105: =SUM(weekly!#REF!) ->  | H105: =SUM(weekly!#REF!) ->  | I105: =SUM(weekly!#REF!) ->  | K105: =SUM(weekly!C450:C453) -> 30 | L105: =SUM(weekly!#REF!) ->  | M105: =SUM(weekly!#REF!) ->  | N105: =SUM(weekly!#REF!) ->  | P105: =SUM(weekly!#REF!) ->  | Q105: 205.6 | R105: 134.3864045
A106: 2009-09-01 | B106: =SUM(weekly!#REF!) ->  | C106: =SUM(weekly!#REF!) ->  | D106: =SUM(weekly!#REF!) ->  | F106: =SUM(weekly!B454:B458) -> 25 | G106: =SUM(weekly!#REF!) ->  | H106: =SUM(weekly!#REF!) ->  | I106: =SUM(weekly!#REF!) ->  | K106: =SUM(weekly!C454:C458) -> 42 | L106: =SUM(weekly!#REF!) ->  | M106: =SUM(weekly!#REF!) ->  | N106: =SUM(weekly!#REF!) ->  | P106: =SUM(weekly!#REF!) ->  | Q106: 205.6 | R106: 134.3864045
A107: 2009-10-01 | B107: =SUM(weekly!#REF!) ->  | C107: =SUM(weekly!#REF!) ->  | D107: =SUM(weekly!#REF!) ->  | F107: =SUM(weekly!B459:B462) -> 17 | G107: =SUM(weekly!#REF!) ->  | H107: =SUM(weekly!#REF!) ->  | I107: =SUM(weekly!#REF!) ->  | K107: =SUM(weekly!C459:C462) -> 41 | L107: =SUM(weekly!#REF!) ->  | M107: =SUM(weekly!#REF!) ->  | N107: =SUM(weekly!#REF!) ->  | P107: =SUM(weekly!#REF!) ->  | Q107: 205.7 | R107: 134.4517675
A108: 2009-11-01 | B108: =SUM(weekly!#REF!) ->  | C108: =SUM(weekly!#REF!) ->  | D108: =SUM(weekly!#REF!) ->  | F108: =SUM(weekly!B463:B466) -> 22 | G108: =SUM(weekly!#REF!) ->  | H108: =SUM(weekly!#REF!) ->  | I108: =SUM(weekly!#REF!) ->  | K108: =SUM(weekly!C463:C466) -> 51 | L108: =SUM(weekly!#REF!) ->  | M108: =SUM(weekly!#REF!) ->  | N108: =SUM(weekly!#REF!) ->  | P108: =SUM(weekly!#REF!) ->  | Q108: 206.2 | R108: 134.7785827
A109: 2009-12-01 | B109: =SUM(weekly!#REF!) ->  | C109: =SUM(weekly!#REF!) ->  | D109: =SUM(weekly!#REF!) ->  | F109: =SUM(weekly!B467:B471) -> 14 | G109: =SUM(weekly!#REF!) ->  | H109: =SUM(weekly!#REF!) ->  | I109: =SUM(weekly!#REF!) ->  | K109: =SUM(weekly!C467:C471) -> 38 | L109: =SUM(weekly!#REF!) ->  | M109: =SUM(weekly!#REF!) ->  | N109: =SUM(weekly!#REF!) ->  | P109: =SUM(weekly!#REF!) ->  | Q109: 205.6 | R109: 134.3864045
A110: 2010-01-01 | B110: =SUM(weekly!#REF!) ->  | C110: =SUM(weekly!#REF!) ->  | D110: =SUM(weekly!#REF!) ->  | F110: =SUM(weekly!B472:B475) -> 14 | G110: =SUM(weekly!#REF!) ->  | H110: =SUM(weekly!#REF!) ->  | I110: =SUM(weekly!#REF!) ->  | K110: =SUM(weekly!C472:C475) -> 21 | L110: =SUM(weekly!#REF!) ->  | M110: =SUM(weekly!#REF!) ->  | N110: =SUM(weekly!#REF!) ->  | P110: =SUM(weekly!#REF!) ->  | Q110: 206.6 | R110: 135.0400349
A111: 2010-02-01 | B111: =SUM(weekly!#REF!) ->  | C111: =SUM(weekly!#REF!) ->  | D111: =SUM(weekly!#REF!) ->  | F111: =SUM(weekly!B476:B479) -> 17 | G111: =SUM(weekly!#REF!) ->  | H111: =SUM(weekly!#REF!) ->  | I111: =SUM(weekly!#REF!) ->  | K111: =SUM(weekly!C476:C479) -> 33 | L111: =SUM(weekly!#REF!) ->  | M111: =SUM(weekly!#REF!) ->  | N111: =SUM(weekly!#REF!) ->  | P111: =SUM(weekly!#REF!) ->  | Q111: 206.6 | R111: 135.0400349
A112: 2010-03-01 | B112: =SUM(weekly!#REF!) ->  | C112: =SUM(weekly!#REF!) ->  | D112: =SUM(weekly!#REF!) ->  | F112: =SUM(weekly!B480:B483) -> 25 | G112: =SUM(weekly!#REF!) ->  | H112: =SUM(weekly!#REF!) ->  | I112: =SUM(weekly!#REF!) ->  | K112: =SUM(weekly!C480:C483) -> 40 | L112: =SUM(weekly!#REF!) ->  | M112: =SUM(weekly!#REF!) ->  | N112: =SUM(weekly!#REF!) ->  | P112: =SUM(weekly!#REF!) ->  | Q112: 207.4 | R112: 135.5629392
A113: 2010-04-01 | B113: =SUM(weekly!#REF!) ->  | C113: =SUM(weekly!#REF!) ->  | D113: =SUM(weekly!#REF!) ->  | F113: =SUM(weekly!B484:B488) -> 30 | G113: =SUM(weekly!#REF!) ->  | H113: =SUM(weekly!#REF!) ->  | I113: =SUM(weekly!#REF!) ->  | K113: =SUM(weekly!C484:C488) -> 51 | L113: =SUM(weekly!#REF!) ->  | M113: =SUM(weekly!#REF!) ->  | N113: =SUM(weekly!#REF!) ->  | P113: =SUM(weekly!#REF!) ->  | Q113: 207.7 | R113: 135.7590283
A114: 2010-05-01 | B114: =SUM(weekly!#REF!) ->  | C114: =SUM(weekly!#REF!) ->  | D114: =SUM(weekly!#REF!) ->  | F114: =SUM(weekly!B489:B492) -> 18 | G114: =SUM(weekly!#REF!) ->  | H114: =SUM(weekly!#REF!) ->  | I114: =SUM(weekly!#REF!) ->  | J114: =(I114/R114)*100 ->  | K114: =SUM(weekly!C489:C492) -> 28 | L114: =SUM(weekly!#REF!) ->  | M114: =SUM(weekly!#REF!) ->  | N114: =SUM(weekly!#REF!) ->  | P114: =SUM(weekly!#REF!) ->  | Q114: 208 | R114: 135.9551174
A115: 2010-06-01 | B115: =SUM(weekly!#REF!) ->  | C115: =SUM(weekly!#REF!) ->  | D115: =SUM(weekly!#REF!) ->  | F115: =SUM(weekly!B493:B497) -> 18 | G115: =SUM(weekly!#REF!) ->  | H115: =SUM(weekly!#REF!) ->  | I115: =SUM(weekly!#REF!) ->  | K115: =SUM(weekly!C493:C497) -> 41 | L115: =SUM(weekly!#REF!) ->  | M115: =SUM(weekly!#REF!) ->  | N115: =SUM(weekly!#REF!) ->  | P115: =SUM(weekly!#REF!) ->  | Q115: 207.9 | R115: 135.8897543
A116: 2010-07-01 | B116: =SUM(weekly!#REF!) ->  | C116: =SUM(weekly!#REF!) ->  | D116: =SUM(weekly!#REF!) ->  | F116: =SUM(weekly!B498:B501) -> 10 | G116: =SUM(weekly!#REF!) ->  | H116: =SUM(weekly!#REF!) ->  | I116: =SUM(weekly!#REF!) ->  | K116: =SUM(weekly!C498:C501) -> 33 | L116: =SUM(weekly!#REF!) ->  | M116: =SUM(weekly!#REF!) ->  | N116: =SUM(weekly!#REF!) ->  | P116: =SUM(weekly!#REF!) ->  | Q116: 208.2 | R116: 136.0858435
A117: 2010-08-01 | B117: =SUM(weekly!#REF!) ->  | C117: =SUM(weekly!#REF!) ->  | D117: =SUM(weekly!#REF!) ->  | F117: =SUM(weekly!B502:B505) -> 16 | G117: =SUM(weekly!#REF!) ->  | H117: =SUM(weekly!#REF!) ->  | I117: =SUM(weekly!#REF!) ->  | K117: =SUM(weekly!C502:C505) -> 28 | L117: =SUM(weekly!#REF!) ->  | M117: =SUM(weekly!#REF!) ->  | N117: =SUM(weekly!#REF!) ->  | P117: =SUM(weekly!#REF!) ->  | Q117: 208.6 | R117: 136.3472956
A118: 2010-09-01 | B118: =SUM(weekly!#REF!) ->  | C118: =SUM(weekly!#REF!) ->  | D118: =SUM(weekly!#REF!) ->  | F118: =SUM(weekly!B506:B510) -> 17 | G118: =SUM(weekly!#REF!) ->  | H118: =SUM(weekly!#REF!) ->  | I118: =SUM(weekly!#REF!) ->  | K118: =SUM(weekly!C506:C510) -> 48 | L118: =SUM(weekly!#REF!) ->  | M118: =SUM(weekly!#REF!) ->  | N118: =SUM(weekly!#REF!) ->  | P118: =SUM(weekly!#REF!) ->  | Q118: 208.8 | R118: 136.4780217
A119: 2010-10-01 | B119: =SUM(weekly!#REF!) ->  | C119: =SUM(weekly!#REF!) ->  | D119: =SUM(weekly!#REF!) ->  | F119: =SUM(weekly!B511:B514) -> 20 | G119: =SUM(weekly!#REF!) ->  | H119: =SUM(weekly!#REF!) ->  | I119: =SUM(weekly!#REF!) ->  | K119: =SUM(weekly!C511:C514) -> 42 | L119: =SUM(weekly!#REF!) ->  | M119: =SUM(weekly!#REF!) ->  | N119: =SUM(weekly!#REF!) ->  | P119: =SUM(weekly!#REF!) ->  | Q119: 208.7 | R119: 136.4126586
A120: 2010-11-01 | B120: =SUM(weekly!#REF!) ->  | C120: =SUM(weekly!#REF!) ->  | D120: =SUM(weekly!#REF!) ->  | F120: =SUM(weekly!B515:B518) -> 15 | G120: =SUM(weekly!#REF!) ->  | H120: =SUM(weekly!#REF!) ->  | I120: =SUM(weekly!#REF!) ->  | K120: =SUM(weekly!C515:C518) -> 43 | L120: =SUM(weekly!#REF!) ->  | M120: =SUM(weekly!#REF!) ->  | N120: =SUM(weekly!#REF!) ->  | P120: =SUM(weekly!#REF!) ->  | Q120: 208.8 | R120: 136.4780217
A121: 2010-12-01 | B121: =SUM(weekly!#REF!) ->  | C121: =SUM(weekly!#REF!) ->  | D121: =SUM(weekly!#REF!) ->  | F121: =SUM(weekly!B519:B523) -> 18 | G121: =SUM(weekly!#REF!) ->  | H121: =SUM(weekly!#REF!) ->  | I121: =SUM(weekly!#REF!) ->  | K121: =SUM(weekly!C519:C523) -> 63 | L121: =SUM(weekly!#REF!) ->  | M121: =SUM(weekly!#REF!) ->  | N121: =SUM(weekly!#REF!) ->  | P121: =SUM(weekly!#REF!) ->  | Q121: 209.3 | R121: 136.8048369
A122: 2011-01-01 | B122: =SUM(weekly!#REF!) ->  | C122: =SUM(weekly!#REF!) ->  | D122: =SUM(weekly!#REF!) ->  | F122: =SUM(weekly!B524:B527) -> 15 | G122: =SUM(weekly!#REF!) ->  | H122: =SUM(weekly!#REF!) ->  | I122: =SUM(weekly!#REF!) ->  | K122: =SUM(weekly!C524:C527) -> 38 | L122: =SUM(weekly!#REF!) ->  | M122: =SUM(weekly!#REF!) ->  | N122: =SUM(weekly!#REF!) ->  | P122: =SUM(weekly!#REF!) ->  | Q122: 210.4 | R122: 137.5238303
A123: 2011-02-01 | B123: =SUM(weekly!#REF!) ->  | C123: =SUM(weekly!#REF!) ->  | D123: =SUM(weekly!#REF!) ->  | F123: =SUM(weekly!B528:B531) -> 26 | G123: =SUM(weekly!#REF!) ->  | H123: =SUM(weekly!#REF!) ->  | I123: =SUM(weekly!#REF!) ->  | K123: =SUM(weekly!C528:C531) -> 30 | L123: =SUM(weekly!#REF!) ->  | M123: =SUM(weekly!#REF!) ->  | N123: =SUM(weekly!#REF!) ->  | P123: =SUM(weekly!#REF!) ->  | Q123: 211.1 | R123: 137.9813715
A124: 2011-03-01 | B124: =SUM(weekly!#REF!) ->  | C124: =SUM(weekly!#REF!) ->  | D124: =SUM(weekly!#REF!) ->  | F124: =SUM(weekly!B532:B536) -> 36 | G124: =SUM(weekly!#REF!) ->  | H124: =SUM(weekly!#REF!) ->  | I124: =SUM(weekly!#REF!) ->  | K124: =SUM(weekly!C532:C536) -> 62 | L124: =SUM(weekly!#REF!) ->  | M124: =SUM(weekly!#REF!) ->  | N124: =SUM(weekly!#REF!) ->  | P124: =SUM(weekly!#REF!) ->  | Q124: 213 | R124: 139.2232692
A125: 2011-04-01 | B125: =SUM(weekly!#REF!) ->  | C125: =SUM(weekly!#REF!) ->  | D125: =SUM(weekly!#REF!) ->  | F125: =SUM(weekly!B537:B540) -> 21 | G125: =SUM(weekly!#REF!) ->  | H125: =SUM(weekly!#REF!) ->  | I125: =SUM(weekly!#REF!) ->  | K125: =SUM(weekly!C537:C540) -> 48 | L125: =SUM(weekly!#REF!) ->  | M125: =SUM(weekly!#REF!) ->  | N125: =SUM(weekly!#REF!) ->  | P125: =SUM(weekly!#REF!) ->  | Q125: 214.5 | R125: 140.2037148
A126: 2011-05-01 | B126: =SUM(weekly!#REF!) ->  | C126: =SUM(weekly!#REF!) ->  | D126: =SUM(weekly!#REF!) ->  | F126: =SUM(weekly!B541:B544) -> 20 | G126: =SUM(weekly!#REF!) ->  | H126: =SUM(weekly!#REF!) ->  | I126: =SUM(weekly!#REF!) ->  | K126: =SUM(weekly!C541:C544) -> 49 | L126: =SUM(weekly!#REF!) ->  | M126: =SUM(weekly!#REF!) ->  | N126: =SUM(weekly!#REF!) ->  | P126: =SUM(weekly!#REF!) ->  | Q126: 215.9 | R126: 141.1187973
A127: 2011-06-01 | B127: =SUM(weekly!#REF!) ->  | C127: =SUM(weekly!#REF!) ->  | D127: =SUM(weekly!#REF!) ->  | F127: =SUM(weekly!B545:B549) -> 25 | G127: =SUM(weekly!#REF!) ->  | H127: =SUM(weekly!#REF!) ->  | I127: =SUM(weekly!#REF!) ->  | K127: =SUM(weekly!C545:C549) -> 47 | L127: =SUM(weekly!#REF!) ->  | M127: =SUM(weekly!#REF!) ->  | N127: =SUM(weekly!#REF!) ->  | P127: =SUM(weekly!#REF!) ->  | Q127: 216 | R127: 141.1841604
A128: 2011-07-01 | B128: =SUM(weekly!#REF!) ->  | C128: =SUM(weekly!#REF!) ->  | D128: =SUM(weekly!#REF!) ->  | F128: =SUM(weekly!B550:B553) -> 21 | G128: =SUM(weekly!#REF!) ->  | H128: =SUM(weekly!#REF!) ->  | I128: =SUM(weekly!#REF!) ->  | K128: =SUM(weekly!C550:C553) -> 31 | L128: =SUM(weekly!#REF!) ->  | M128: =SUM(weekly!#REF!) ->  | N128: =SUM(weekly!#REF!) ->  | P128: =SUM(weekly!#REF!) ->  | Q128: 216.1 | R128: 141.2495234
A129: 2011-08-01 | B129: =SUM(weekly!#REF!) ->  | C129: =SUM(weekly!#REF!) ->  | D129: =SUM(weekly!#REF!) ->  | F129: =SUM(weekly!B554:B558) -> 18 | G129: =SUM(weekly!#REF!) ->  | H129: =SUM(weekly!#REF!) ->  | I129: =SUM(weekly!#REF!) ->  | K129: =SUM(weekly!C554:C558) -> 47 | L129: =SUM(weekly!#REF!) ->  | M129: =SUM(weekly!#REF!) ->  | N129: =SUM(weekly!#REF!) ->  | P129: =SUM(weekly!#REF!) ->  | Q129: 216.6 | R129: 141.5763386
A130: 2011-09-01 | B130: =SUM(weekly!#REF!) ->  | C130: =SUM(weekly!#REF!) ->  | D130: =SUM(weekly!#REF!) ->  | F130: =SUM(weekly!B559:B562) -> 21 | G130: =SUM(weekly!#REF!) ->  | H130: =SUM(weekly!#REF!) ->  | I130: =SUM(weekly!#REF!) ->  | K130: =SUM(weekly!C559:C562) -> 34 | L130: =SUM(weekly!#REF!) ->  | M130: =SUM(weekly!#REF!) ->  | N130: =SUM(weekly!#REF!) ->  | P130: =SUM(weekly!#REF!) ->  | Q130: 217 | R130: 141.8377907
A131: 2011-10-01 | B131: =SUM(weekly!#REF!) ->  | C131: =SUM(weekly!#REF!) ->  | D131: =SUM(weekly!#REF!) ->  | F131: =SUM(weekly!B563:B566) -> 17 | G131: =SUM(weekly!#REF!) ->  | H131: =SUM(weekly!#REF!) ->  | I131: =SUM(weekly!#REF!) ->  | K131: =SUM(weekly!C563:C566) -> 28 | L131: =SUM(weekly!#REF!) ->  | M131: =SUM(weekly!#REF!) ->  | N131: =SUM(weekly!#REF!) ->  | P131: =SUM(weekly!#REF!) ->  | Q131: 215.7 | R131: 140.9880712
A132: 2011-11-01 | B132: =SUM(weekly!#REF!) ->  | C132: =SUM(weekly!#REF!) ->  | D132: =SUM(weekly!#REF!) ->  | F132: =SUM(weekly!B567:B571) -> 14 | G132: =SUM(weekly!#REF!) ->  | H132: =SUM(weekly!#REF!) ->  | I132: =SUM(weekly!#REF!) ->  | K132: =SUM(weekly!C567:C571) -> 54 | L132: =SUM(weekly!#REF!) ->  | M132: =SUM(weekly!#REF!) ->  | N132: =SUM(weekly!#REF!) ->  | P132: =SUM(weekly!#REF!) ->  | Q132: 215.6 | R132: 140.9227082
A133: 2011-12-01 | B133: =SUM(weekly!#REF!) ->  | C133: =SUM(weekly!#REF!) ->  | D133: =SUM(weekly!#REF!) ->  | F133: =SUM(weekly!B572:B575) -> 39 | G133: =SUM(weekly!#REF!) ->  | H133: =SUM(weekly!#REF!) ->  | I133: =SUM(weekly!#REF!) ->  | K133: =SUM(weekly!C572:C575) -> 60 | L133: =SUM(weekly!#REF!) ->  | M133: =SUM(weekly!#REF!) ->  | N133: =SUM(weekly!#REF!) ->  | O133: =(N133/R133)*100 ->  | P133: =SUM(weekly!#REF!) ->  | Q133: 215.2 | R133: 140.6612561
A134: 2012-01-01 | B134: =SUM(weekly!#REF!) ->  | C134: =SUM(weekly!#REF!) ->  | D134: =SUM(weekly!#REF!) ->  | F134: =SUM(weekly!B576:B579) -> 23 | G134: =SUM(weekly!#REF!) ->  | H134: =SUM(weekly!#REF!) ->  | I134: =SUM(weekly!#REF!) ->  | J134: =(I134/R134)*100 ->  | K134: =SUM(weekly!C576:C579) -> 49 | L134: =SUM(weekly!#REF!) ->  | M134: =SUM(weekly!#REF!) ->  | N134: =SUM(weekly!#REF!) ->  | P134: =SUM(weekly!#REF!) ->  | Q134: 216.4 | R134: 141.4456125
A135: 2012-02-01 | B135: =SUM(weekly!#REF!) ->  | C135: =SUM(weekly!#REF!) ->  | D135: =SUM(weekly!#REF!) ->  | F135: =SUM(weekly!B580:B583) -> 32 | G135: =SUM(weekly!#REF!) ->  | H135: =SUM(weekly!#REF!) ->  | I135: =SUM(weekly!#REF!) ->  | K135: =SUM(weekly!C580:C583) -> 53 | L135: =SUM(weekly!#REF!) ->  | M135: =SUM(weekly!#REF!) ->  | N135: =SUM(weekly!#REF!) ->  | P135: =SUM(weekly!#REF!) ->  | Q135: 216.9 | R135: 141.7724277
A136: 2012-03-01 | B136: =SUM(weekly!#REF!) ->  | C136: =SUM(weekly!#REF!) ->  | D136: =SUM(weekly!#REF!) ->  | F136: =SUM(weekly!B584:B588) -> 23 | G136: =SUM(weekly!#REF!) ->  | H136: =SUM(weekly!#REF!) ->  | I136: =SUM(weekly!#REF!) ->  | K136: =SUM(weekly!C584:C588) -> 70 | L136: =SUM(weekly!#REF!) ->  | M136: =SUM(weekly!#REF!) ->  | N136: =SUM(weekly!#REF!) ->  | P136: =SUM(weekly!#REF!) ->  | Q136: 219 | R136: 143.1450515
A137: 2012-04-01 | B137: =SUM(weekly!#REF!) ->  | C137: =SUM(weekly!#REF!) ->  | D137: =SUM(weekly!#REF!) ->  | F137: =SUM(weekly!B589:B592) -> 25 | G137: =SUM(weekly!#REF!) ->  | H137: =SUM(weekly!#REF!) ->  | I137: =SUM(weekly!#REF!) ->  | K137: =SUM(weekly!C589:C592) -> 39 | L137: =SUM(weekly!#REF!) ->  | M137: =SUM(weekly!#REF!) ->  | N137: =SUM(weekly!#REF!) ->  | P137: =SUM(weekly!#REF!) ->  | Q137: 219.4 | R137: 143.4065036
A138: 2012-05-01 | B138: =SUM(weekly!#REF!) ->  | C138: =SUM(weekly!#REF!) ->  | D138: =SUM(weekly!#REF!) ->  | F138: =SUM(weekly!B593:B597) -> 26 | G138: =SUM(weekly!#REF!) ->  | H138: =SUM(weekly!#REF!) ->  | I138: =SUM(weekly!#REF!) ->  | K138: =SUM(weekly!C593:C597) -> 65 | L138: =SUM(weekly!#REF!) ->  | M138: =SUM(weekly!#REF!) ->  | N138: =SUM(weekly!#REF!) ->  | P138: =SUM(weekly!#REF!) ->  | Q138: 219.1 | R138: 143.2104145
A139: 2012-06-01 | B139: =SUM(weekly!#REF!) ->  | C139: =SUM(weekly!#REF!) ->  | D139: =SUM(weekly!#REF!) ->  | F139: =SUM(weekly!B598:B601) -> 14 | G139: =SUM(weekly!#REF!) ->  | H139: =SUM(weekly!#REF!) ->  | I139: =SUM(weekly!#REF!) ->  | K139: =SUM(weekly!C598:C601) -> 39 | L139: =SUM(weekly!#REF!) ->  | M139: =SUM(weekly!#REF!) ->  | N139: =SUM(weekly!#REF!) ->  | P139: =SUM(weekly!#REF!) ->  | Q139: 219 | R139: 143.1450515
A140: 2012-07-01 | B140: =SUM(weekly!#REF!) ->  | C140: =SUM(weekly!#REF!) ->  | D140: =SUM(weekly!#REF!) ->  | F140: =SUM(weekly!B602:B605) -> 18 | G140: =SUM(weekly!#REF!) ->  | H140: =SUM(weekly!#REF!) ->  | I140: =SUM(weekly!#REF!) ->  | K140: =SUM(weekly!C602:C605) -> 40 | L140: =SUM(weekly!#REF!) ->  | M140: =SUM(weekly!#REF!) ->  | N140: =SUM(weekly!#REF!) ->  | P140: =SUM(weekly!#REF!) ->  | Q140: 219 | R140: 143.1450515
A141: 2012-08-01 | B141: =SUM(weekly!#REF!) ->  | C141: =SUM(weekly!#REF!) ->  | D141: =SUM(weekly!#REF!) ->  | F141: =SUM(weekly!B606:B610) -> 16 | G141: =SUM(weekly!#REF!) ->  | H141: =SUM(weekly!#REF!) ->  | I141: =SUM(weekly!#REF!) ->  | K141: =SUM(weekly!C606:C610) -> 34 | L141: =SUM(weekly!#REF!) ->  | M141: =SUM(weekly!#REF!) ->  | N141: =SUM(weekly!#REF!) ->  | P141: =SUM(weekly!#REF!) ->  | Q141: 220.5 | R141: 144.125497
A142: 2012-09-01 | B142: =SUM(weekly!#REF!) ->  | C142: =SUM(weekly!#REF!) ->  | D142: =SUM(weekly!#REF!) ->  | F142: =SUM(weekly!B611:B614) -> 22 | G142: =SUM(weekly!#REF!) ->  | H142: =SUM(weekly!#REF!) ->  | I142: =SUM(weekly!#REF!) ->  | K142: =SUM(weekly!C611:C614) -> 42 | L142: =SUM(weekly!#REF!) ->  | M142: =SUM(weekly!#REF!) ->  | N142: =SUM(weekly!#REF!) ->  | P142: =SUM(weekly!#REF!) ->  | Q142: 221.1 | R142: 144.5176753
A143: 2012-10-01 | B143: =SUM(weekly!#REF!) ->  | C143: =SUM(weekly!#REF!) ->  | D143: =SUM(weekly!#REF!) ->  | F143: =SUM(weekly!B615:B618) -> 28 | G143: =SUM(weekly!#REF!) ->  | H143: =SUM(weekly!#REF!) ->  | I143: =SUM(weekly!#REF!) ->  | K143: =SUM(weekly!C615:C618) -> 54 | L143: =SUM(weekly!#REF!) ->  | M143: =SUM(weekly!#REF!) ->  | N143: =SUM(weekly!#REF!) ->  | P143: =SUM(weekly!#REF!) ->  | Q143: 220.4 | R143: 144.060134
A144: 2012-11-01 | B144: =SUM(weekly!#REF!) ->  | C144: =SUM(weekly!#REF!) ->  | D144: =SUM(weekly!#REF!) ->  | F144: =SUM(weekly!B619:B623) -> 18 | G144: =SUM(weekly!#REF!) ->  | H144: =SUM(weekly!#REF!) ->  | I144: =SUM(weekly!#REF!) ->  | K144: =SUM(weekly!C619:C623) -> 59 | L144: =SUM(weekly!#REF!) ->  | M144: =SUM(weekly!#REF!) ->  | N144: =SUM(weekly!#REF!) ->  | P144: =SUM(weekly!#REF!) ->  | Q144: 219.5 | R144: 143.4718667
A145: 2012-12-01 | B145: =SUM(weekly!#REF!) ->  | C145: =SUM(weekly!#REF!) ->  | D145: =SUM(weekly!#REF!) ->  | F145: =SUM(weekly!B624:B627) -> 29 | G145: =SUM(weekly!#REF!) ->  | H145: =SUM(weekly!#REF!) ->  | I145: =SUM(weekly!#REF!) ->  | K145: =SUM(weekly!C624:C627) -> 52 | L145: =SUM(weekly!#REF!) ->  | M145: =SUM(weekly!#REF!) ->  | N145: =SUM(weekly!#REF!) ->  | P145: =SUM(weekly!#REF!) ->  | Q145: 219 | R145: 143.1450515
A146: 2013-01-01 | B146: =SUM(weekly!#REF!) ->  | C146: =SUM(weekly!#REF!) ->  | D146: =SUM(weekly!#REF!) ->  | F146: =SUM(weekly!B628:B631) -> 22 | G146: =SUM(weekly!#REF!) ->  | H146: =SUM(weekly!#REF!) ->  | I146: =SUM(weekly!#REF!) ->  | K146: =SUM(weekly!C628:C631) -> 55 | L146: =SUM(weekly!#REF!) ->  | M146: =SUM(weekly!#REF!) ->  | N146: =SUM(weekly!#REF!) ->  | P146: =SUM(weekly!#REF!) ->  | Q146: 219.3 | R146: 143.3411406
A147: 2013-02-01 | B147: =SUM(weekly!#REF!) ->  | C147: =SUM(weekly!#REF!) ->  | D147: =SUM(weekly!#REF!) ->  | F147: =SUM(weekly!B632:B635) -> 19 | G147: =SUM(weekly!#REF!) ->  | H147: =SUM(weekly!#REF!) ->  | I147: =SUM(weekly!#REF!) ->  | K147: =SUM(weekly!C632:C635) -> 55 | L147: =SUM(weekly!#REF!) ->  | M147: =SUM(weekly!#REF!) ->  | N147: =SUM(weekly!#REF!) ->  | P147: =SUM(weekly!#REF!) ->  | Q147: 221.6 | R147: 144.8444904
A148: 2013-03-01 | B148: =SUM(weekly!#REF!) ->  | C148: =SUM(weekly!#REF!) ->  | D148: =SUM(weekly!#REF!) ->  | F148: =SUM(weekly!B636:B640) -> 22 | G148: =SUM(weekly!#REF!) ->  | H148: =SUM(weekly!#REF!) ->  | I148: =SUM(weekly!#REF!) ->  | K148: =SUM(weekly!C636:C640) -> 45 | L148: =SUM(weekly!#REF!) ->  | M148: =SUM(weekly!#REF!) ->  | N148: =SUM(weekly!#REF!) ->  | P148: =SUM(weekly!#REF!) ->  | Q148: 222.1 | R148: 145.1713056
A149: 2013-04-01 | B149: =SUM(weekly!#REF!) ->  | C149: =SUM(weekly!#REF!) ->  | D149: =SUM(weekly!#REF!) ->  | F149: =SUM(weekly!B641:B644) -> 20 | G149: =SUM(weekly!#REF!) ->  | H149: =SUM(weekly!#REF!) ->  | I149: =SUM(weekly!#REF!) ->  | K149: =SUM(weekly!C641:C644) -> 54 | L149: =SUM(weekly!#REF!) ->  | M149: =SUM(weekly!#REF!) ->  | N149: =SUM(weekly!#REF!) ->  | P149: =SUM(weekly!#REF!) ->  | Q149: 221.9 | R149: 145.0405796
A150: 2013-05-01 | B150: =SUM(weekly!#REF!) ->  | C150: =SUM(weekly!#REF!) ->  | D150: =SUM(weekly!#REF!) ->  | F150: =SUM(weekly!B645:B649) -> 31 | G150: =SUM(weekly!#REF!) ->  | H150: =SUM(weekly!#REF!) ->  | I150: =SUM(weekly!#REF!) ->  | K150: =SUM(weekly!C645:C649) -> 66 | L150: =SUM(weekly!#REF!) ->  | M150: =SUM(weekly!#REF!) ->  | N150: =SUM(weekly!#REF!) ->  | P150: =SUM(weekly!#REF!) ->  | Q150: 223.1 | R150: 145.824936
A151: 2013-06-01 | B151: =SUM(weekly!#REF!) ->  | C151: =SUM(weekly!#REF!) ->  | D151: =SUM(weekly!#REF!) ->  | F151: =SUM(weekly!B650:B653) -> 26 | G151: =SUM(weekly!#REF!) ->  | H151: =SUM(weekly!#REF!) ->  | I151: =SUM(weekly!#REF!) ->  | K151: =SUM(weekly!C650:C653) -> 40 | L151: =SUM(weekly!#REF!) ->  | M151: =SUM(weekly!#REF!) ->  | N151: =SUM(weekly!#REF!) ->  | P151: =SUM(weekly!#REF!) ->  | Q151: 223.8 | R151: 146.2824773
A152: 2013-07-01 | B152: =SUM(weekly!#REF!) ->  | C152: =SUM(weekly!#REF!) ->  | D152: =SUM(weekly!#REF!) ->  | F152: =SUM(weekly!B654:B657) -> 26 | G152: =SUM(weekly!#REF!) ->  | H152: =SUM(weekly!#REF!) ->  | I152: =SUM(weekly!#REF!) ->  | K152: =SUM(weekly!C654:C657) -> 51 | L152: =SUM(weekly!#REF!) ->  | M152: =SUM(weekly!#REF!) ->  | N152: =SUM(weekly!#REF!) ->  | P152: =SUM(weekly!#REF!) ->  | Q152: 222.9 | R152: 145.6942099
A153: 2013-08-01 | B153: =SUM(weekly!#REF!) ->  | C153: =SUM(weekly!#REF!) ->  | D153: =SUM(weekly!#REF!) ->  | F153: =SUM(weekly!B658:B662) -> 37 | G153: =SUM(weekly!#REF!) ->  | H153: =SUM(weekly!#REF!) ->  | I153: =SUM(weekly!#REF!) ->  | K153: =SUM(weekly!C658:C662) -> 57 | L153: =SUM(weekly!#REF!) ->  | M153: =SUM(weekly!#REF!) ->  | N153: =SUM(weekly!#REF!) ->  | P153: =SUM(weekly!#REF!) ->  | Q153: 223 | R153: 145.759573
A154: 2013-09-01 | B154: =SUM(weekly!#REF!) ->  | C154: =SUM(weekly!#REF!) ->  | D154: =SUM(weekly!#REF!) ->  | E154: =(D154/R154)*100 ->  | F154: =SUM(weekly!B663:B666) -> 15 | G154: =SUM(weekly!#REF!) ->  | H154: =SUM(weekly!#REF!) ->  | I154: =SUM(weekly!#REF!) ->  | K154: =SUM(weekly!C663:C666) -> 27 | L154: =SUM(weekly!#REF!) ->  | M154: =SUM(weekly!#REF!) ->  | N154: =SUM(weekly!#REF!) ->  | P154: =SUM(weekly!#REF!) ->  | Q154: 223.3 | R154: 145.9556621
A155: 2013-10-01 | B155: =SUM(weekly!#REF!) ->  | C155: =SUM(weekly!#REF!) ->  | D155: =SUM(weekly!#REF!) ->  | F155: =SUM(weekly!B667:B670) -> 17 | G155: =SUM(weekly!#REF!) ->  | H155: =SUM(weekly!#REF!) ->  | I155: =SUM(weekly!#REF!) ->  | K155: =SUM(weekly!C667:C670) -> 42 | L155: =SUM(weekly!#REF!) ->  | M155: =SUM(weekly!#REF!) ->  | N155: =SUM(weekly!#REF!) ->  | P155: =SUM(weekly!#REF!) ->  | Q155: 222.2 | R155: 145.2366687
A156: 2013-11-01 | B156: =SUM(weekly!#REF!) ->  | C156: =SUM(weekly!#REF!) ->  | D156: =SUM(weekly!#REF!) ->  | F156: =SUM(weekly!B671:B675) -> 22 | G156: =SUM(weekly!#REF!) ->  | H156: =SUM(weekly!#REF!) ->  | I156: =SUM(weekly!#REF!) ->  | K156: =SUM(weekly!C671:C675) -> 56 | L156: =SUM(weekly!#REF!) ->  | M156: =SUM(weekly!#REF!) ->  | N156: =SUM(weekly!#REF!) ->  | P156: =SUM(weekly!#REF!) ->  | Q156: 221.7 | R156: 144.9098535
A157: 2013-12-01 | B157: =SUM(weekly!#REF!) ->  | C157: =SUM(weekly!#REF!) ->  | D157: =SUM(weekly!#REF!) ->  | F157: =SUM(weekly!B676:B679) -> 29 | G157: =SUM(weekly!#REF!) ->  | H157: =SUM(weekly!#REF!) ->  | I157: =SUM(weekly!#REF!) ->  | K157: =SUM(weekly!C676:C679) -> 30 | L157: =SUM(weekly!#REF!) ->  | M157: =SUM(weekly!#REF!) ->  | N157: =SUM(weekly!#REF!) ->  | P157: =SUM(weekly!#REF!) ->  | Q157: 221.2 | R157: 144.5830383
A158: 2014-01-01 | B158: =SUM(weekly!#REF!) ->  | C158: =SUM(weekly!#REF!) ->  | D158: =SUM(weekly!#REF!) ->  | F158: =SUM(weekly!B680:B684) -> 30 | G158: =SUM(weekly!#REF!) ->  | H158: =SUM(weekly!#REF!) ->  | I158: =SUM(weekly!#REF!) ->  | K158: =SUM(weekly!C680:C684) -> 59 | L158: =SUM(weekly!#REF!) ->  | M158: =SUM(weekly!#REF!) ->  | N158: =SUM(weekly!#REF!) ->  | P158: =SUM(weekly!#REF!) ->  | Q158: 222.2 | R158: 145.2366687
A159: 2014-02-01 | B159: =SUM(weekly!#REF!) ->  | C159: =SUM(weekly!#REF!) ->  | D159: =SUM(weekly!#REF!) ->  | F159: =SUM(weekly!B685:B688) -> 29 | G159: =SUM(weekly!#REF!) ->  | H159: =SUM(weekly!#REF!) ->  | I159: =SUM(weekly!#REF!) ->  | K159: =SUM(weekly!C685:C688) -> 41 | L159: =SUM(weekly!#REF!) ->  | M159: =SUM(weekly!#REF!) ->  | N159: =SUM(weekly!#REF!) ->  | P159: =SUM(weekly!#REF!) ->  | Q159: 223.5 | R159: 146.0863881
A160: 2014-03-01 | B160: =SUM(weekly!#REF!) ->  | C160: =SUM(weekly!#REF!) ->  | D160: =SUM(weekly!#REF!) ->  | F160: =SUM(weekly!B689:B692) -> 36 | G160: =SUM(weekly!#REF!) ->  | H160: =SUM(weekly!#REF!) ->  | I160: =SUM(weekly!#REF!) ->  | K160: =SUM(weekly!C689:C692) -> 62 | L160: =SUM(weekly!#REF!) ->  | M160: =SUM(weekly!#REF!) ->  | N160: =SUM(weekly!#REF!) ->  | P160: =SUM(weekly!#REF!) ->  | Q160: 225.5 | R160: 147.3936489
A161: 2014-04-01 | B161: =SUM(weekly!#REF!) ->  | C161: =SUM(weekly!#REF!) ->  | D161: =SUM(weekly!#REF!) ->  | F161: =SUM(weekly!B693:B696) -> 29 | G161: =SUM(weekly!#REF!) ->  | H161: =SUM(weekly!#REF!) ->  | I161: =SUM(weekly!#REF!) ->  | K161: =SUM(weekly!C693:C696) -> 57 | L161: =SUM(weekly!#REF!) ->  | M161: =SUM(weekly!#REF!) ->  | N161: =SUM(weekly!#REF!) ->  | P161: =SUM(weekly!#REF!) ->  | Q161: 226.2 | R161: 147.8511902
A162: 2014-05-01 | B162: =SUM(weekly!#REF!) ->  | C162: =SUM(weekly!#REF!) ->  | D162: =SUM(weekly!#REF!) ->  | F162: =SUM(weekly!B697:B701) -> 39 | G162: =SUM(weekly!#REF!) ->  | H162: =SUM(weekly!#REF!) ->  | I162: =SUM(weekly!#REF!) ->  | K162: =SUM(weekly!C697:C701) -> 49 | L162: =SUM(weekly!#REF!) ->  | M162: =SUM(weekly!#REF!) ->  | N162: =SUM(weekly!#REF!) ->  | P162: =SUM(weekly!#REF!) ->  | Q162: 226.6 | R162: 148.1126423
A163: 2014-06-01 | B163: =SUM(weekly!#REF!) ->  | C163: =SUM(weekly!#REF!) ->  | D163: =SUM(weekly!#REF!) ->  | F163: =SUM(weekly!B702:B705) -> 16 | G163: =SUM(weekly!#REF!) ->  | H163: =SUM(weekly!#REF!) ->  | I163: =SUM(weekly!#REF!) ->  | K163: =SUM(weekly!C702:C705) -> 49 | L163: =SUM(weekly!#REF!) ->  | M163: =SUM(weekly!#REF!) ->  | N163: =SUM(weekly!#REF!) ->  | P163: =SUM(weekly!#REF!) ->  | Q163: 227.6 | R163: 148.7662727
A164: 2014-07-01 | B164: =SUM(weekly!#REF!) ->  | C164: =SUM(weekly!#REF!) ->  | D164: =SUM(weekly!#REF!) ->  | F164: =SUM(weekly!B706:B709) -> 34 | G164: =SUM(weekly!#REF!) ->  | H164: =SUM(weekly!#REF!) ->  | I164: =SUM(weekly!#REF!) ->  | K164: =SUM(weekly!C706:C709) -> 49 | L164: =SUM(weekly!#REF!) ->  | M164: =SUM(weekly!#REF!) ->  | N164: =SUM(weekly!#REF!) ->  | P164: =SUM(weekly!#REF!) ->  | Q164: 227 | R164: 148.3740944
A165: 2014-08-01 | B165: =SUM(weekly!#REF!) ->  | C165: =SUM(weekly!#REF!) ->  | D165: =SUM(weekly!#REF!) ->  | F165: =SUM(weekly!B710:B714) -> 37 | G165: =SUM(weekly!#REF!) ->  | H165: =SUM(weekly!#REF!) ->  | I165: =SUM(weekly!#REF!) ->  | K165: =SUM(weekly!C710:C714) -> 66 | L165: =SUM(weekly!#REF!) ->  | M165: =SUM(weekly!#REF!) ->  | N165: =SUM(weekly!#REF!) ->  | P165: =F165+K165 -> 103 | Q165: 226.6 | R165: 148.1126423
A166: 2014-09-01 | B166: =SUM(weekly!#REF!) ->  | C166: =SUM(weekly!#REF!) ->  | D166: =SUM(weekly!#REF!) ->  | F166: =SUM(weekly!B714:B717) -> 18 | G166: =SUM(weekly!#REF!) ->  | H166: =SUM(weekly!#REF!) ->  | I166: =SUM(weekly!#REF!) ->  | K166: =SUM(weekly!C714:C717) -> 25 | L166: =SUM(weekly!#REF!) ->  | M166: =SUM(weekly!#REF!) ->  | N166: =SUM(weekly!#REF!) ->  | P166: =F166+K166 -> 43 | Q166: 226.9 | R166: 148.3087314
A167: 2014-10-01 | B167: =SUM(weekly!#REF!) ->  | C167: =SUM(weekly!#REF!) ->  | D167: =SUM(weekly!#REF!) ->  | F167: =SUM(weekly!B718:B722) -> 41 | G167: =SUM(weekly!#REF!) ->  | H167: =SUM(weekly!#REF!) ->  | I167: =SUM(weekly!#REF!) ->  | K167: =SUM(weekly!C718:C722) -> 51 | L167: =SUM(weekly!#REF!) ->  | M167: =SUM(weekly!#REF!) ->  | N167: =SUM(weekly!#REF!) ->  | P167: =K167+F167 -> 92 | Q167: 225.8 | R167: 147.589738
A168: 2014-11-01 | B168: =SUM(weekly!#REF!) ->  | C168: =SUM(weekly!#REF!) ->  | D168: =SUM(weekly!#REF!) ->  | F168: =SUM(weekly!B724:B727) -> 17 | G168: =SUM(weekly!#REF!) ->  | H168: =SUM(weekly!#REF!) ->  | I168: =SUM(weekly!#REF!) ->  | K168: =SUM(weekly!C724:C727) -> 45 | L168: =B168+G168 ->  | M168: =C168+H168 ->  | P168: =K168+F168 -> 62 | Q168: 224.8 | R168: 146.9361076
A169: 2014-12-01 | B169: =SUM(weekly!#REF!) ->  | C169: =SUM(weekly!#REF!) ->  | D169: =SUM(weekly!#REF!) ->  | G169: =SUM(weekly!#REF!) ->  | H169: =SUM(weekly!#REF!) ->  | I169: =SUM(weekly!#REF!) ->  | L169: =B169+G169 ->  | Q169: 222.8 | R169: 145.6288469
A170: 2015-01-01 | B170: =SUM(weekly!#REF!) ->  | C170: =SUM(weekly!#REF!) ->  | D170: =SUM(weekly!#REF!) -> 
A171: 2015-02-01
A172: 2015-03-01
A173: 2015-04-01
A174: 2015-05-01
A175: 2015-06-01
A176: 2015-07-01
A177: 2015-08-01
A178: 2015-09-01
A179: 2015-10-01
A180: 2015-11-01
A181: 2015-12-01

Sheet mnth-mnth
A1: ecch_mbi | B1: jan | C1: feb | D1: mar | E1: apr | F1: may | G1: jun | H1: jul | I1: aug | J1: sep | K1: oct | L1: nov | M1: dec | N1: ytd_total
A2: 2003 | B2: 51 | C2: 39 | D2: 46 | E2: 45 | F2: 44 | G2: 47 | H2: 44 | I2: 39 | J2: 33 | K2: 52 | L2: 45 | M2: 63 | N2: =SUM(B2:M2) -> 548 | O2: =SUM(B2:M2) -> 548
A3: 2004 | B3: 62 | C3: 36 | D3: 85 | E3: 58 | F3: 67 | G3: 75 | H3: 40 | I3: 32 | J3: 43 | K3: 40 | L3: 42 | M3: 70 | N3: 650 | O3: 650
A4: 2005 | B4: 49 | C4: 65 | D4: 80 | E4: 44 | F4: 75 | G4: 84 | H4: 53 | I4: 56 | J4: 39 | K4: 57 | L4: 64 | M4: 46 | N4: 712 | O4: 712
A5: 2006 | B5: 66 | C5: 63 | D5: 79 | E5: 80 | F5: 64 | G5: 60 | H5: 55 | I5: 59 | J5: 69 | K5: 32 | L5: 64 | M5: 57 | N5: 748 | O5: 748
A6: 2007 | B6: 72 | C6: 65 | D6: 63 | E6: 87 | F6: 59 | G6: 57 | H6: 63 | I6: 45 | J6: 107 | K6: 59 | L6: 54 | M6: 63 | N6: 794 | O6: 794
A7: 2008 | B7: 68 | C7: 53 | D7: 87 | E7: 82 | F7: 75 | G7: 19 | H7: 76 | I7: 43 | J7: 39 | K7: 70 | L7: 45 | M7: 72 | N7: 729 | O7: 729
A8: 2009 | B8: 47 | C8: 48 | D8: 60 | E8: 67 | F8: 49 | G8: 39 | H8: 58 | I8: 47 | J8: 67 | K8: 58 | L8: 73 | M8: 52 | N8: 665 | O8: 665
A9: 2010 | B9: 35 | C9: 50 | D9: 65 | E9: 81 | F9: 46 | G9: 59 | H9: 43 | I9: 44 | J9: 65 | K9: 62 | L9: 58 | M9: 81 | N9: =SUM(B9:M9) -> 689 | O9: =SUM(B9:M9) -> 689
A10: 2011 | B10: 53 | C10: 56 | D10: 98 | E10: 69 | F10: 69 | G10: 72 | H10: 52 | I10: 65 | J10: 55 | K10: 45 | L10: 68 | M10: 99 | N10: =SUM(B10:M10) -> 801 | O10: 801
A11: 2012 | B11: 72 | C11: 85 | D11: 93 | E11: 64 | F11: 91 | G11: 53 | H11: 58 | I11: 50 | J11: 64 | K11: 82 | L11: 77 | M11: 81 | N11: =SUM(B11:M11) -> 870 | O11: 870
A12: 2013 | B12: 77 | C12: 74 | D12: 67 | E12: 74 | F12: 97 | G12: 66 | H12: 77 | I12: 94 | J12: 42 | K12: 59 | L12: 78 | M12: 59 | N12: =SUM(B12:L12) -> 805 | O12: 864
A13: 2014 | B13: 89 | C13: 70 | D13: 98 | E13: 86 | F13: 88 | G13: 65 | H13: 83 | I13: 103 | J13: =43 -> 43 | K13: 92 | L13: 62 | N13: =SUM(B13:L13) -> 879 | O13: 879
A14: 2015 | N14: =SUM(B14:B14) -> 0 | O14: 0
B15: jan-dec | C15: feb-jan | D15: mar-feb | E15: apr-mar | F15: may-apr | G15: jun-may | H15: jul-jun | I15: aug-jul | J15: sep-aug | K15: oct-sep | L15: nov-oct | M15: dec-nov
A16: change_04 | B16: =B3-M2 -> -1 | C16: =C3-B3 -> -26 | D16: 49 | E16: -27 | F16: 9 | G16: 8 | H16: -35 | I16: -8 | J16: 11 | K16: -3 | L16: 2 | M16: 28
A17: %change_04 | B17: =(B16/M2)*100 -> -1.587301587 | C17: =(C16/B3)*100 -> -41.93548387 | D17: 136.1111111 | E17: -31.76470588 | F17: 15.51724138 | G17: 11.94029851 | H17: -46.66666667 | I17: -20 | J17: 34.375 | K17: -6.976744186 | L17: 5 | M17: 66.66666667
B18: jan | C18: feb | D18: mar | E18: apr | F18: may | G18: jun | H18: jul | I18: aug | J18: sep | K18: oct | L18: nov | M18: dec | N18: ytd_total
A19: chg_prv_04-03 | B19: =B3-B2 -> 11 | C19: -3 | D19: 39 | E19: 13 | F19: 23 | G19: 28 | H19: -4 | I19: -7 | J19: 10 | K19: -12 | L19: -3 | M19: 7 | N19: =O3-O2 -> 102
A20: %chg_prv_04-03 | B20: =(B19/B2)*100 -> 21.56862745 | C20: -7.692307692 | D20: 84.7826087 | E20: 28.88888889 | F20: 52.27272727 | G20: 59.57446809 | H20: -9.090909091 | I20: -17.94871795 | J20: 30.3030303 | K20: -23.07692308 | L20: -6.666666667 | M20: 11.11111111 | N20: =(N19/O2)*100 -> 18.61313869
B22: jan-dec | C22: feb-jan | D22: mar-feb | E22: apr-mar | F22: may-apr | G22: jun-may | H22: jul-jun | I22: aug-jul | J22: sep-aug | K22: oct-sep | L22: nov-oct | M22: dec-nov
A23: change_05 | B23: =B4-M3 -> -21 | C23: =C4-B4 -> 16 | D23: 15 | E23: -36 | F23: 31 | G23: 9 | H23: -31 | I23: 3 | J23: -17 | K23: 18 | L23: 7 | M23: -18
A24: %change_05 | B24: =(B23/M3)*100 -> -30 | C24: =(C23/B4)*100 -> 32.65306122 | D24: 23.07692308 | E24: -45 | F24: 70.45454545 | G24: 12 | H24: -36.9047619 | I24: 5.660377358 | J24: -30.35714286 | K24: 46.15384615 | L24: 12.28070175 | M24: -28.125
B25: jan | C25: feb | D25: mar | E25: apr | F25: may | G25: jun | H25: jul | I25: aug | J25: sep | K25: oct | L25: nov | M25: dec | N25: ytd_total
A26: chg_prv_05-04 | B26: =B4-B3 -> -13 | C26: 29 | D26: -5 | E26: -14 | F26: 8 | G26: 9 | H26: 13 | I26: 24 | J26: -4 | K26: 17 | L26: 22 | M26: -24 | N26: =O4-O3 -> 62
A27: %chg_prv_05-04 | B27: =(B26/B3)*100 -> -20.96774194 | C27: 80.55555556 | D27: -5.882352941 | E27: -24.13793103 | F27: 11.94029851 | G27: 12 | H27: 32.5 | I27: 75 | J27: -9.302325581 | K27: 42.5 | L27: 52.38095238 | M27: -34.28571429 | N27: =(N26/O3)*100 -> 9.538461538
B29: jan-dec | C29: feb-jan | D29: mar-feb | E29: apr-mar | F29: may-apr | G29: jun-may | H29: jul-jun | I29: aug-jul | J29: sep-aug | K29: oct-sep | L29: nov-oct | M29: dec-nov
A30: change_06 | B30: =B5-M4 -> 20 | C30: =C5-B5 -> -3 | D30: 16 | E30: 1 | F30: -16 | G30: -4 | H30: -5 | I30: 4 | J30: 10 | K30: -37 | L30: 32 | M30: -7
A31: %change_06 | B31: =(B30/M4)*100 -> 43.47826087 | C31: =(C30/B5)*100 -> -4.545454545 | D31: 25.3968254 | E31: 1.265822785 | F31: -20 | G31: -6.25 | H31: -8.333333333 | I31: 7.272727273 | J31: 16.94915254 | K31: -53.62318841 | L31: 100 | M31: -10.9375
B32: jan | C32: feb | D32: mar | E32: apr | F32: may | G32: jun | H32: jul | I32: aug | J32: sep | K32: oct | L32: nov | M32: dec | N32: ytd_total
A33: chg_prv_06-05 | B33: =B5-B4 -> 17 | C33: -2 | D33: -1 | E33: 36 | F33: -11 | G33: -24 | H33: 2 | I33: 3 | J33: 30 | K33: -25 | L33: 0 | M33: 11 | N33: =O5-O4 -> 36
A34: %chg_prv_06-05 | B34: =(B33/B4)*100 -> 34.69387755 | C34: -3.076923077 | D34: -1.25 | E34: 81.81818182 | F34: -14.66666667 | G34: -28.57142857 | H34: 3.773584906 | I34: 5.357142857 | J34: 76.92307692 | K34: -43.85964912 | L34: 0 | M34: 23.91304348 | N34: =(N33/O4)*100 -> 5.056179775
B36: jan-dec | C36: feb-jan | D36: mar-feb | E36: apr-mar | F36: may-apr | G36: jun-may | H36: jul-jun | I36: aug-jul | J36: sep-aug | K36: oct-sep | L36: nov-oct | M36: dec-nov
A37: change_07 | B37: =B6-M5 -> 15 | C37: =C6-B6 -> -7 | D37: -2 | E37: 24 | F37: -28 | G37: -2 | H37: 6 | I37: -18 | J37: 62 | K37: -48 | L37: -5 | M37: 9
A38: %change_07 | B38: =(B37/M5)*100 -> 26.31578947 | C38: =(C37/B6)*100 -> -9.722222222 | D38: -3.076923077 | E38: 38.0952381 | F38: -32.18390805 | G38: -3.389830508 | H38: 10.52631579 | I38: -28.57142857 | J38: 137.7777778 | K38: -44.85981308 | L38: -8.474576271 | M38: 16.66666667
B39: jan | C39: feb | D39: mar | E39: apr | F39: may | G39: jun | H39: jul | I39: aug | J39: sep | K39: oct | L39: nov | M39: dec | N39: ytd_total
A40: chg_prv_07-06 | B40: =B6-B5 -> 6 | C40: 2 | D40: -16 | E40: 7 | F40: -5 | G40: -3 | H40: 8 | I40: -14 | J40: 38 | K40: 27 | L40: -10 | M40: 6 | N40: =O6-O5 -> 46
A41: %chg_prv_07-06 | B41: =(B40/B5)*100 -> 9.090909091 | C41: 3.174603175 | D41: -20.25316456 | E41: 8.75 | F41: -7.8125 | G41: -5 | H41: 14.54545455 | I41: -23.72881356 | J41: 55.07246377 | K41: 84.375 | L41: -15.625 | M41: 10.52631579 | N41: =(N40/O5)*100 -> 6.14973262
B43: jan-dec | C43: feb-jan | D43: mar-feb | E43: apr-mar | F43: may-apr | G43: jun-may | H43: jul-jun | I43: aug-jul | J43: sep-aug | K43: oct-sep | L43: nov-oct | M43: dec-nov
A44: change_08 | B44: =B7-M6 -> 5 | C44: =C7-B7 -> -15 | D44: 34 | E44: -5 | F44: -7 | G44: -56 | H44: 57 | I44: -33 | J44: -4 | K44: 31 | L44: -25 | M44: 27
A45: %change_08 | B45: =(B44/M6)*100 -> 7.936507937 | C45: =-(C44/B7)*100 -> 22.05882353 | D45: -64.1509434 | E45: 5.747126437 | F45: 8.536585366 | G45: 74.66666667 | H45: -300 | I45: 43.42105263 | J45: 9.302325581 | K45: -79.48717949 | L45: 35.71428571 | M45: -60
B46: jan | C46: feb | D46: mar | E46: apr | F46: may | G46: jun | H46: jul | I46: aug | J46: sep | K46: oct | L46: nov | M46: dec | N46: ytd_total
A47: chg_prv_08-07 | B47: =B7-B6 -> -4 | C47: -12 | D47: 24 | E47: -5 | F47: 16 | G47: -38 | H47: 13 | I47: -2 | J47: -68 | K47: 11 | L47: -9 | M47: 9 | N47: =O7-O6 -> -65
A48: %chg_prv_08-07 | B48: =(B47/B6)*100 -> -5.555555556 | C48: -18.46153846 | D48: 38.0952381 | E48: -5.747126437 | F48: 27.11864407 | G48: -66.66666667 | H48: 20.63492063 | I48: -4.444444444 | J48: -63.55140187 | K48: 18.6440678 | L48: -16.66666667 | M48: 14.28571429 | N48: =(N47/O6)*100 -> -8.186397985
B50: jan-dec | C50: feb-jan | D50: mar-feb | E50: apr-mar | F50: may-apr | G50: jun-may | H50: jul-jun | I50: aug-jul | J50: sep-aug | K50: oct-sep | L50: nov-oct | M50: dec-nov
A51: change_09 | B51: =B8-M7 -> -25 | C51: =C8-B8 -> 1 | D51: 12 | E51: 7 | F51: -18 | G51: -10 | H51: 19 | I51: -11 | J51: 20 | K51: -9 | L51: 15 | M51: -21
A52: %change_09 | B52: =(B51/M7)*100 -> -34.72222222 | C52: =(C51/B8)*100 -> 2.127659574 | D52: 25 | E52: 11.66666667 | F52: -26.86567164 | G52: -20.40816327 | H52: 48.71794872 | I52: -18.96551724 | J52: 42.55319149 | K52: -13.43283582 | L52: 25.86206897 | M52: -28.76712329
B53: jan | C53: feb | D53: mar | E53: apr | F53: may | G53: jun | H53: jul | I53: aug | J53: sep | K53: oct | L53: nov | M53: dec | N53: ytd_total
A54: chg_prv_09-08 | B54: =B8-B7 -> -21 | C54: -5 | D54: -27 | E54: -15 | F54: -26 | G54: 20 | H54: -18 | I54: 4 | J54: 28 | K54: -12 | L54: 28 | M54: -20 | N54: =O8-O7 -> -64
A55: %chg_prv_09-08 | B55: =(B54/B7)*100 -> -30.88235294 | C55: -9.433962264 | D55: -31.03448276 | E55: -18.29268293 | F55: -34.66666667 | G55: 105.2631579 | H55: -23.68421053 | I55: 9.302325581 | J55: 71.79487179 | K55: -17.14285714 | L55: 62.22222222 | M55: -27.77777778 | N55: =(N54/O7)*100 -> -8.77914952
B57: jan-dec | C57: feb-jan | D57: mar-feb | E57: apr-mar | F57: may-apr | G57: jun-may | H57: jul-jun | I57: aug-jul | J57: sep-aug | K57: oct-sep | L57: nov-oct | M57: dec-nov
A58: change_10 | B58: =B9-M8 -> -17 | C58: =C9-B9 -> 15 | D58: 15 | E58: 16 | F58: -35 | G58: 13 | H58: -16 | I58: 1 | J58: 21 | K58: -3 | L58: -4 | M58: 23
A59: %change_10 | B59: =(B58/M8)*100 -> -32.69230769 | C59: =(C58/B9)*100 -> 42.85714286 | D59: 30 | E59: 24.61538462 | F59: -43.20987654 | G59: 28.26086957 | H59: -27.11864407 | I59: 2.325581395 | J59: 47.72727273 | K59: -4.615384615 | L59: -6.451612903 | M59: 39.65517241
B60: jan | C60: feb | D60: mar | E60: apr | F60: may | G60: jun | H60: jul | I60: aug | J60: sep | K60: oct | L60: nov | M60: dec | N60: ytd_total
A61: chg_prv_10-09 | B61: =B9-B8 -> -12 | C61: 2 | D61: 5 | E61: 14 | F61: -3 | G61: 20 | H61: -15 | I61: -3 | J61: -2 | K61: 4 | L61: -15 | M61: 29 | N61: =O9-O8 -> 24
A62: %chg_prv_10-09 | B62: =(B61/B8)*100 -> -25.53191489 | C62: 4.166666667 | D62: 8.333333333 | E62: 20.89552239 | F62: -6.12244898 | G62: 51.28205128 | H62: -25.86206897 | I62: -6.382978723 | J62: -2.985074627 | K62: 6.896551724 | L62: -20.54794521 | M62: 55.76923077 | N62: =(N61/O8)*100 -> 3.609022556
B64: jan-dec | C64: feb-jan | D64: mar-feb | E64: apr-mar | F64: may-apr | G64: jun-may | H64: jul-jun | I64: aug-jul | J64: sep-aug | K64: oct-sep | L64: nov-oct | M64: dec-nov
A65: change_11 | B65: =B10-M9 -> -28 | C65: =C10-B10 -> 3 | D65: 42 | E65: -29 | F65: 0 | G65: 3 | H65: -20 | I65: 13 | J65: -10 | K65: -10 | L65: 23 | M65: 31
A66: %change_11 | B66: =(B65/M9)*100 -> -34.56790123 | C66: =(C65/B10)*100 -> 5.660377358 | D66: 75 | E66: -29.59183673 | F66: 0 | G66: 4.347826087 | H66: -27.77777778 | I66: 25 | J66: -15.38461538 | K66: -18.18181818 | L66: 51.11111111 | M66: 45.58823529
B67: jan | C67: feb | D67: mar | E67: apr | F67: may | G67: jun | H67: jul | I67: aug | J67: sep | K67: oct | L67: nov | M67: dec | N67: ytd_total
A68: chg_prv_11-10 | B68: =B10-B9 -> 18 | C68: 6 | D68: 33 | E68: -12 | F68: 23 | G68: 13 | H68: 9 | I68: 21 | J68: -10 | K68: -17 | L68: 10 | M68: 18 | N68: =O10-O9 -> 112
A69: %chg_prv_11-10 | B69: =(B68/B9)*100 -> 51.42857143 | C69: 12 | D69: 50.76923077 | E69: -14.81481481 | F69: 50 | G69: 22.03389831 | H69: 20.93023256 | I69: 47.72727273 | J69: -15.38461538 | K69: -27.41935484 | L69: 17.24137931 | M69: 22.22222222 | N69: =(N68/O9)*100 -> 16.25544267
B71: jan-dec | C71: feb-jan | D71: mar-feb | E71: apr-mar | F71: may-apr | G71: jun-may | H71: jul-jun | I71: aug-jul | J71: sep-aug | K71: oct-sep | L71: nov-oct | M71: dec-nov
A72: change_12 | B72: =B11-M10 -> -27 | C72: =C11-B11 -> 13 | D72: 8 | E72: -29 | F72: 27 | G72: -38 | H72: 5 | I72: -8 | J72: 14 | K72: 18 | L72: -5 | M72: 4
A73: %change_12 | B73: =(B72/M10)*100 -> -27.27272727 | C73: =(C72/B11)*100 -> 18.05555556 | D73: 9.411764706 | E73: -31.1827957 | F73: 42.1875 | G73: -41.75824176 | H73: 9.433962264 | I73: -13.79310345 | J73: 28 | K73: 28.125 | L73: -6.097560976 | M73: 5.194805195
B74: jan | C74: feb | D74: mar | E74: apr | F74: may | G74: jun | H74: jul | I74: aug | J74: sep | K74: oct | L74: nov | M74: dec | N74: ytd_total
A75: chg_prv_12-11 | B75: =B11-B10 -> 19 | C75: 29 | D75: -5 | E75: -5 | F75: 22 | G75: -19 | H75: 6 | I75: -15 | J75: 9 | K75: 37 | L75: 9 | M75: -18 | N75: =O11-O10 -> 69
A76: %chg_prv_12-11 | B76: =(B75/B10)*100 -> 35.8490566 | C76: 51.78571429 | D76: -5.102040816 | E76: -7.246376812 | F76: 31.88405797 | G76: -26.38888889 | H76: 11.53846154 | I76: -23.07692308 | J76: 16.36363636 | K76: 82.22222222 | L76: 13.23529412 | M76: -18.18181818 | N76: =(N75/O10)*100 -> 8.61423221
B78: jan-dec | C78: feb-jan | D78: mar-feb | E78: apr-mar | F78: may-apr | G78: jun-may | H78: jul-jun | I78: aug-jul | J78: sep-aug | K78: oct-sep | L78: nov-oct | M78: dec-nov
A79: change_13 | B79: =B12-M11 -> -4 | C79: =C12-B12 -> -3 | D79: -7 | E79: 7 | F79: 23 | G79: -31 | H79: 11 | I79: 17 | J79: -52 | K79: 17 | L79: 19 | M79: -19
A80: %change_13 | B80: =(B79/M11)*100 -> -4.938271605 | C80: =(C79/B12)*100 -> -3.896103896 | D80: -9.459459459 | E80: 10.44776119 | F80: 31.08108108 | G80: -31.95876289 | H80: 16.66666667 | I80: 22.07792208 | J80: -55.31914894 | K80: 40.47619048 | L80: 32.20338983 | M80: -24.35897436
B81: jan | C81: feb | D81: mar | E81: apr | F81: may | G81: jun | H81: jul | I81: aug | J81: sep | K81: oct | L81: nov | M81: dec | N81: ytd_total
A82: chg_prv_13-12 | B82: =B12-B11 -> 5 | C82: -11 | D82: -26 | E82: 10 | F82: 6 | G82: 13 | H82: 19 | I82: 44 | J82: -22 | K82: -23 | L82: 1 | M82: -22 | N82: =O12-O11 -> -6
A83: %chg_prv_13-12 | B83: =(B82/B11)*100 -> 6.944444444 | C83: -12.94117647 | D83: -27.95698925 | E83: 15.625 | F83: 6.593406593 | G83: 24.52830189 | H83: 32.75862069 | I83: 88 | J83: -34.375 | K83: -28.04878049 | L83: 1.298701299 | M83: -27.16049383 | N83: =(N82/O11)*100 -> -0.6896551724
B85: jan-dec | C85: feb-jan | D85: mar-feb | E85: apr-mar | F85: may-apr | G85: jun-may | H85: jul-jun | I85: aug-jul | J85: sep-aug | K85: oct-sep | L85: nov-oct | M85: dec-nov
A86: change_14 | B86: =B13-M12 -> 30 | C86: =C13-B13 -> -19 | D86: 28 | E86: -12 | F86: 2 | G86: -23 | H86: 18 | I86: 20 | J86: =J13-I13 -> -60 | K86: 49 | L86: -30
A87: %change_14 | B87: =(B86/M12)*100 -> 50.84745763 | C87: =(C86/B13)*100 -> -21.34831461 | D87: 40 | E87: -12.24489796 | F87: 2.325581395 | G87: -26.13636364 | H87: 27.69230769 | I87: 24.09638554 | J87: =(J86/I13)*100 -> -58.25242718 | K87: 113.9534884 | L87: -32.60869565
B88: jan | C88: feb | D88: mar | E88: apr | F88: may | G88: jun | H88: jul | I88: aug | J88: sep | K88: oct | L88: nov | M88: dec | N88: ytd_total
A89: chg_prv_14-13 | B89: =B13-B12 -> 12 | C89: -4 | D89: 31 | E89: 12 | F89: -9 | G89: -1 | H89: 6 | I89: 9 | J89: 1 | K89: 33 | L89: -16 | N89: =O13-O12 -> 15
A90: %chg_prv_14-13 | B90: =(B89/B12)*100 -> 15.58441558 | C90: -5.405405405 | D90: 46.26865672 | E90: 16.21621622 | F90: -9.278350515 | G90: -1.515151515 | H90: 7.792207792 | I90: 9.574468085 | J90: 2.380952381 | K90: 55.93220339 | L90: -20.51282051 | N90: =(N89/O12)*100 -> 1.736111111
B92: jan-dec | C92: feb-jan | D92: mar-feb | E92: apr-mar | F92: may-apr | G92: jun-may | H92: jul-jun | I92: aug-jul | J92: sep-aug | K92: oct-sep | L92: nov-oct | M92: dec-nov
A93: change_15
A94: %change_15
B95: jan | C95: feb | D95: mar | E95: apr | F95: may | G95: jun | H95: jul | I95: aug | J95: sep | K95: oct | L95: nov | M95: dec | N95: ytd_total
A96: chg_prv_15-14 | N96: =N14-N13 -> -879
A97: %chg_prv_15-14 | N97: =(N96/N13)*100 -> -100
A99: ecch_mbr | B99: jan | C99: feb | D99: mar | E99: apr | F99: may | G99: jun | H99: jul | I99: aug | J99: sep | K99: oct | L99: nov | M99: dec | N99: ytd_total
A100: 2003 | B100: 36 | C100: 43 | D100: 40 | E100: 60 | F100: 24 | G100: 32 | H100: 42 | I100: 39 | J100: 31 | K100: 46 | L100: 49 | M100: 44 | N100: =SUM(B100:M100) -> 486 | O100: =SUM(B100:M100) -> 486
A101: 2004 | B101: 35 | C101: 29 | D101: 44 | E101: 33 | F101: 27 | G101: 28 | H101: 33 | I101: 32 | J101: 29 | K101: 34 | L101: 25 | M101: 26 | N101: 375 | O101: 375
A102: 2005 | B102: 31 | C102: 32 | D102: 64 | E102: 60 | F102: 54 | G102: 60 | H102: 37 | I102: 49 | J102: 98 | K102: 249 | L102: 0 | M102: 6 | N102: 740 | O102: 740
A103: 2006 | B103: 0 | C103: 6 | D103: 8 | E103: 12 | F103: 16 | G103: 8 | H103: 13 | I103: 23 | J103: 12 | K103: 17 | L103: 17 | M103: 13 | N103: 145 | O103: 145
A104: 2007 | B104: 16 | C104: 25 | D104: 26 | E104: 38 | F104: 14 | G104: 13 | H104: 43 | I104: 7 | J104: 26 | K104: 28 | L104: 27 | M104: 20 | N104: 283 | O104: 283
A105: 2008 | B105: 33 | C105: 35 | D105: 39 | E105: 41 | F105: 33 | G105: 32 | H105: 45 | I105: 41 | J105: 33 | K105: 41 | L105: 23 | M105: 20 | N105: 416 | O105: 416
A106: 2009 | B106: 39 | C106: 39 | D106: 45 | E106: 77 | F106: 42 | G106: 23 | H106: 49 | I106: 19 | J106: 67 | K106: 33 | L106: 34 | M106: 32 | N106: =SUM(B106:M106) -> 499 | O106: =SUM(B106:M106) -> 499
A107: 2010 | B107: 37 | C107: 38 | D107: 49 | E107: 60 | F107: 33 | G107: 57 | H107: 33 | I107: 45 | J107: 40 | K107: 38 | L107: 26 | M107: 46 | N107: 502 | O107: 502
A108: 2011 | B108: 31 | C108: 42 | D108: 72 | E108: 33 | F108: 49 | G108: 40 | H108: 36 | I108: 31 | J108: 27 | K108: 24 | L108: 33 | M108: 29 | N108: 447 | O108: 447
A109: 2012 | B109: 19 | C109: 27 | D109: 55 | E109: 22 | F109: 49 | G109: 37 | H109: 23 | I109: 35 | J109: 27 | K109: 25 | L109: 30 | M109: 25 | N109: 374 | O109: 374
A110: 2013 | B110: 16 | C110: 26 | D110: 49 | E110: 43 | F110: 41 | G110: 31 | H110: 26 | I110: 36 | J110: 19 | K110: 16 | L110: 30 | M110: 19 | N110: 352 | O110: 352
A111: 2014 | B111: 37 | C111: 17 | D111: 27 | E111: 30 | F111: 39 | G111: 34 | H111: 26 | I111: 17 | J111: 34 | K111: 33 | L111: 25 | M111: 19 | N111: 338 | O111: 338
A112: 2015 | N112: =SUM(B112:B112) -> 0 | O112: =SUM(B112:M112) -> 0
N113: =SUM(B113:B113) -> 0 | O113: =SUM(B113:M113) -> 0
B114: jan-dec | C114: feb-jan | D114: mar-feb | E114: apr-mar | F114: may-apr | G114: jun-may | H114: jul-jun | I114: aug-jul | J114: sep-aug | K114: oct-sep | L114: nov-oct | M114: dec-nov
A115: change_04 | B115: =B101-M100 -> -9 | C115: =C101-B101 -> -6 | D115: 15 | E115: -11 | F115: -6 | G115: 1 | H115: 5 | I115: -1 | J115: -3 | K115: 5 | L115: -9 | M115: 1
A116: %change_04 | B116: =(B115/M100)*100 -> -20.45454545 | C116: =(C115/B101)*100 -> -17.14285714 | D116: 51.72413793 | E116: -25 | F116: -18.18181818 | G116: 3.703703704 | H116: 17.85714286 | I116: -3.03030303 | J116: -9.375 | K116: 17.24137931 | L116: -26.47058824 | M116: 4
B117: jan | C117: feb | D117: mar | E117: apr | F117: may | G117: jun | H117: jul | I117: aug | J117: sep | K117: oct | L117: nov | M117: dec | N117: ytd_total
A118: chg_prv_04-03 | B118: =B101-B100 -> -1 | C118: -14 | D118: 4 | E118: -27 | F118: 3 | G118: -4 | H118: -9 | I118: -7 | J118: =J101-J100 -> -2 | K118: =K101-K100 -> -12 | L118: =L101-L100 -> -24 | M118: =M101-M100 -> -18 | N118: =O101-O100 -> -111
A119: %chg_prv_04-03 | B119: =(B118/B100)*100 -> -2.777777778 | C119: -32.55813953 | D119: 10 | E119: -45 | F119: 12.5 | G119: -12.5 | H119: -21.42857143 | I119: -17.94871795 | J119: -6.451612903 | K119: -26.08695652 | L119: -48.97959184 | M119: -40.90909091 | N119: =(N118/O100)*100 -> -22.83950617
B121: jan-dec | C121: feb-jan | D121: mar-feb | E121: apr-mar | F121: may-apr | G121: jun-may | H121: jul-jun | I121: aug-jul | J121: sep-aug | K121: oct-sep | L121: nov-oct | M121: dec-nov
A122: change_05 | B122: =B102-M101 -> 5 | C122: =C102-B102 -> 1 | D122: 32 | E122: -4 | F122: -6 | G122: 6 | H122: -23 | I122: 12 | J122: 49 | K122: 151 | L122: -249 | M122: 6
A123: %change_05 | B123: =(B122/M101)*100 -> 19.23076923 | C123: =(C122/B102)*100 -> 3.225806452 | D123: 100 | E123: -6.25 | F123: -10 | G123: 11.11111111 | H123: -38.33333333 | I123: 32.43243243 | J123: 100 | K123: 154.0816327 | L123: -100
B124: jan | C124: feb | D124: mar | E124: apr | F124: may | G124: jun | H124: jul | I124: aug | J124: sep | K124: oct | L124: nov | M124: dec | N124: ytd_total
A125: chg_prv_05-04 | B125: =B102-B101 -> -4 | C125: 3 | D125: 20 | E125: 27 | F125: 27 | G125: 32 | H125: 4 | I125: 17 | J125: =J102-J101 -> 69 | K125: =K102-K101 -> 215 | L125: =L102-L101 -> -25 | M125: =M102-M101 -> -20 | N125: =O102-O101 -> 365
A126: %chg_prv_05-04 | B126: =(B125/B101)*100 -> -11.42857143 | C126: 10.34482759 | D126: 45.45454545 | E126: 81.81818182 | F126: 100 | G126: 114.2857143 | H126: 12.12121212 | I126: 53.125 | J126: 237.9310345 | K126: 632.3529412 | L126: -100 | M126: -76.92307692 | N126: =(N125/O101)*100 -> 97.33333333
B128: jan-dec | C128: feb-jan | D128: mar-feb | E128: apr-mar | F128: may-apr | G128: jun-may | H128: jul-jun | I128: aug-jul | J128: sep-aug | K128: oct-sep | L128: nov-oct | M128: dec-nov
A129: change_06 | B129: =B103-M102 -> -6 | C129: =C103-B103 -> 6 | D129: 2 | E129: 4 | F129: 4 | G129: -8 | H129: 5 | I129: 10 | J129: -11 | K129: 5 | L129: =L103-K103 -> 0 | M129: =M103-L103 -> -4
A130: %change_06 | B130: =(B129/M102)*100 -> -100 | C130: =(C129/B103)*100 ->  | D130: 33.33333333 | E130: 50 | F130: 33.33333333 | G130: -50 | H130: 62.5 | I130: 76.92307692 | J130: -47.82608696 | K130: 41.66666667 | L130: =(L129/K103)*100 -> 0 | M130: =(M129/L103)*100 -> -23.52941176
B131: jan | C131: feb | D131: mar | E131: apr | F131: may | G131: jun | H131: jul | I131: aug | J131: sep | K131: oct | L131: nov | M131: dec | N131: ytd_total
A132: chg_prv_06-05 | B132: =B103-B102 -> -31 | C132: -26 | D132: -56 | E132: -48 | F132: -38 | G132: -52 | H132: =H103-H102 -> -24 | I132: -26 | J132: -86 | K132: -232 | L132: 17 | M132: 7 | N132: =O103-O102 -> -595
A133: %chg_prv_06-05 | B133: =(B132/B102)*100 -> -100 | C133: -81.25 | D133: -87.5 | E133: -80 | F133: -70.37037037 | G133: -86.66666667 | H133: -64.86486486 | I133: -53.06122449 | J133: -87.75510204 | K133: -93.17269076 | L133: =(L132/L102)*100 ->  | M133: =(M132/M102)*100 -> 116.6666667 | N133: =(N132/O102)*100 -> -80.40540541
B135: jan-dec | C135: feb-jan | D135: mar-feb | E135: apr-mar | F135: may-apr | G135: jun-may | H135: jul-jun | I135: aug-jul | J135: sep-aug | K135: oct-sep | L135: nov-oct | M135: dec-nov
A136: change_07 | B136: =B104-M103 -> 3 | C136: =C104-B104 -> 9 | D136: 1 | E136: 12 | F136: -24 | G136: -1 | H136: 30 | I136: -36 | J136: 19 | K136: =K104-J104 -> 2 | L136: =L104-K104 -> -1 | M136: =M104-L104 -> -7
A137: %change_07 | B137: =(B136/M103)*100 -> 23.07692308 | C137: =(C136/B104)*100 -> 56.25 | D137: 4 | E137: 46.15384615 | F137: -63.15789474 | G137: -7.142857143 | H137: 230.7692308 | I137: -83.72093023 | J137: 271.4285714 | K137: =(K136/J104)*100 -> 7.692307692 | L137: =(L136/K104)*100 -> -3.571428571 | M137: =(M136/L104)*100 -> -25.92592593
B138: jan | C138: feb | D138: mar | E138: apr | F138: may | G138: jun | H138: jul | I138: aug | J138: sep | K138: oct | L138: nov | M138: dec | N138: ytd_total
A139: chg_prv_07-06 | B139: =B104-B103 -> 16 | C139: 19 | D139: 18 | E139: 26 | F139: -2 | G139: 5 | H139: =H104-H103 -> 30 | I139: -16 | J139: 14 | K139: 11 | L139: 10 | M139: 7 | N139: =O104-O103 -> 138
A140: %chg_prv_07-06 | B140: =(B139/B103)*100 ->  | C140: 316.6666667 | D140: 225 | E140: 216.6666667 | F140: -12.5 | G140: 62.5 | H140: =(H139/H103)*100 -> 230.7692308 | I140: -69.56521739 | J140: 116.6666667 | K140: 64.70588235 | L140: 58.82352941 | M140: 53.84615385 | N140: =(N139/O103)*100 -> 95.17241379
B142: jan-dec | C142: feb-jan | D142: mar-feb | E142: apr-mar | F142: may-apr | G142: jun-may | H142: jul-jun | I142: aug-jul | J142: sep-aug | K142: oct-sep | L142: nov-oct | M142: dec-nov
A143: change_08 | B143: =B105-M104 -> 13 | C143: =C105-B105 -> 2 | D143: 4 | E143: 2 | F143: -8 | G143: -1 | H143: 13 | I143: =I105-H105 -> -4 | J143: =J105-I105 -> -8 | K143: =K105-J105 -> 8 | L143: =L105-K105 -> -18 | M143: =M105-L105 -> -3
A144: %change_08 | B144: =(B143/M104)*100 -> 65 | C144: =(C143/B105)*100 -> 6.060606061 | D144: 11.42857143 | E144: 5.128205128 | F144: -19.51219512 | G144: -3.03030303 | H144: 40.625 | I144: -8.888888889 | J144: -19.51219512 | K144: =(K143/J105)*100 -> 24.24242424 | L144: =(L143/K105)*100 -> -43.90243902 | M144: =(M143/L105)*100 -> -13.04347826
B145: jan | C145: feb | D145: mar | E145: apr | F145: may | G145: jun | H145: jul | I145: aug | J145: sep | K145: oct | L145: nov | M145: dec | N145: ytd_total
A146: chg_prv_08-07 | B146: =B105-B104 -> 17 | C146: 10 | D146: 13 | E146: 3 | F146: 19 | G146: 19 | H146: =H105-H104 -> 2 | I146: 34 | J146: 7 | K146: 13 | L146: -4 | M146: 0 | N146: =O105-O104 -> 133
A147: %chg_prv_08-07 | B147: =(B146/B104)*100 -> 106.25 | C147: 40 | D147: 50 | E147: 7.894736842 | F147: 135.7142857 | G147: 146.1538462 | H147: 4.651162791 | I147: =(I146/I104)*100 -> 485.7142857 | J147: =(J146/J104)*100 -> 26.92307692 | K147: =(K146/K104)*100 -> 46.42857143 | L147: =(L146/L104)*100 -> -14.81481481 | M147: =(M146/M104)*100 -> 0 | N147: =(N146/O104)*100 -> 46.99646643
B149: jan-dec | C149: feb-jan | D149: mar-feb | E149: apr-mar | F149: may-apr | G149: jun-may | H149: jul-jun | I149: aug-jul | J149: sep-aug | K149: oct-sep | L149: nov-oct | M149: dec-nov
A150: change_09 | B150: =B106-M105 -> 19 | C150: =C106-B106 -> 0 | D150: 6 | E150: 32 | F150: -35 | G150: -19 | H150: 26 | I150: -30 | J150: 48 | K150: -34 | L150: 1 | M150: -2
A151: %change_09 | B151: =(B150/M105)*100 -> 95 | C151: =(C150/B106)*100 -> 0 | D151: 15.38461538 | E151: 71.11111111 | F151: -45.45454545 | G151: -45.23809524 | H151: 113.0434783 | I151: -61.2244898 | J151: 252.6315789 | K151: -50.74626866 | L151: 3.03030303 | M151: -5.882352941
B152: jan | C152: feb | D152: mar | E152: apr | F152: may | G152: jun | H152: jul | I152: aug | J152: sep | K152: oct | L152: nov | M152: dec | N152: ytd_total
A153: chg_prv_09-08 | B153: =B106-B105 -> 6 | C153: 4 | D153: 6 | E153: 36 | F153: 9 | G153: -9 | H153: 4 | I153: -22 | J153: 34 | K153: -8 | L153: 11 | M153: 12 | N153: =O106-O105 -> 83
A154: %chg_prv_09-08 | B154: =(B153/B105)*100 -> 18.18181818 | C154: 11.42857143 | D154: 15.38461538 | E154: 87.80487805 | F154: 27.27272727 | G154: -28.125 | H154: 8.888888889 | I154: -53.65853659 | J154: 103.030303 | K154: -19.51219512 | L154: 47.82608696 | M154: 60 | N154: =(N153/O105)*100 -> 19.95192308
B156: jan-dec | C156: feb-jan | D156: mar-feb | E156: apr-mar | F156: may-apr | G156: jun-may | H156: jul-jun | I156: aug-jul | J156: sep-aug | K156: oct-sep | L156: nov-oct | M156: dec-nov
A157: change_10 | B157: =B107-M106 -> 5 | C157: =C107-B107 -> 1 | D157: 11 | E157: 11 | F157: -27 | G157: 24 | H157: -24 | I157: 12 | J157: -5 | K157: -2 | L157: -12 | M157: 20
A158: %change_10 | B158: =(B157/M106)*100 -> 15.625 | C158: =(C157/B107)*100 -> 2.702702703 | D158: 28.94736842 | E158: 22.44897959 | F158: -45 | G158: 72.72727273 | H158: -42.10526316 | I158: 36.36363636 | J158: -11.11111111 | K158: -5 | L158: -31.57894737 | M158: 76.92307692
B159: jan | C159: feb | D159: mar | E159: apr | F159: may | G159: jun | H159: jul | I159: aug | J159: sep | K159: oct | L159: nov | M159: dec | N159: ytd_total
A160: chg_prv_10-09 | B160: =B107-B106 -> -2 | C160: -1 | D160: 4 | E160: -17 | F160: -9 | G160: 34 | H160: =H107-H106 -> -16 | I160: 26 | J160: -27 | K160: 5 | L160: -8 | M160: 14 | N160: =O107-O106 -> 3
A161: %chg_prv_10-09 | B161: =(B160/B106)*100 -> -5.128205128 | C161: -2.564102564 | D161: 8.888888889 | E161: -22.07792208 | F161: -21.42857143 | G161: 147.826087 | H161: =(H160/H106)*100 -> -32.65306122 | I161: 136.8421053 | J161: -40.29850746 | K161: 15.15151515 | L161: -23.52941176 | M161: 43.75 | N161: =(N160/O106)*100 -> 0.6012024048
B163: jan-dec | C163: feb-jan | D163: mar-feb | E163: apr-mar | F163: may-apr | G163: jun-may | H163: jul-jun | I163: aug-jul | J163: sep-aug | K163: oct-sep | L163: nov-oct | M163: dec-nov
A164: change_11 | B164: =B108-M107 -> -15 | C164: =C108-B108 -> 11 | D164: 30 | E164: -39 | F164: 16 | G164: -9 | H164: -4 | I164: -5 | J164: -4 | K164: -3 | L164: 9 | M164: -4
A165: %change_11 | B165: =(B164/M107)*100 -> -32.60869565 | C165: =(C164/B108)*100 -> 35.48387097 | D165: 71.42857143 | E165: -54.16666667 | F165: 48.48484848 | G165: -18.36734694 | H165: -10 | I165: -13.88888889 | J165: -12.90322581 | K165: -11.11111111 | L165: 37.5 | M165: -12.12121212
B166: jan | C166: feb | D166: mar | E166: apr | F166: may | G166: jun | H166: jul | I166: aug | J166: sep | K166: oct | L166: nov | M166: dec | N166: ytd_total
A167: chg_prv_11-10 | B167: =B108-B107 -> -6 | C167: 4 | D167: 23 | E167: -27 | F167: 16 | G167: -17 | H167: =H108-H107 -> 3 | I167: -14 | J167: -13 | K167: -14 | L167: 7 | M167: -17 | N167: =O108-O107 -> -55
A168: %chg_prv_11-10 | B168: =(B167/B107)*100 -> -16.21621622 | C168: 10.52631579 | D168: 46.93877551 | E168: -45 | F168: 48.48484848 | G168: -29.8245614 | H168: =(H167/H107)*100 -> 9.090909091 | I168: -31.11111111 | J168: -32.5 | K168: -36.84210526 | L168: 26.92307692 | M168: -36.95652174 | N168: =(N167/O107) -> -0.109561753
B170: jan-dec | C170: feb-jan | D170: mar-feb | E170: apr-mar | F170: may-apr | G170: jun-may | H170: jul-jun | I170: aug-jul | J170: sep-aug | K170: oct-sep | L170: nov-oct | M170: dec-nov
A171: change_12 | B171: =B109-M108 -> -10 | C171: =C109-B109 -> 8 | D171: 28 | E171: -33 | F171: 27 | G171: -12 | H171: -14 | I171: =I109-H109 -> 12 | J171: -8 | K171: -2 | L171: 5 | M171: -5
A172: %change_12 | B172: =(B171/M108)*100 -> -34.48275862 | C172: =(C171/B109)*100 -> 42.10526316 | D172: 103.7037037 | E172: -60 | F172: 122.7272727 | G172: -24.48979592 | H172: -37.83783784 | I172: 52.17391304 | J172: -22.85714286 | K172: -7.407407407 | L172: 20 | M172: -16.66666667
B173: jan | C173: feb | D173: mar | E173: apr | F173: may | G173: jun | H173: jul | I173: aug | J173: sep | K173: oct | L173: nov | M173: dec | N173: ytd_total
A174: chg_prv_12-11 | B174: =B109-B108 -> -12 | C174: -15 | D174: -17 | E174: -11 | F174: 0 | G174: -3 | H174: =H109-H108 -> -13 | I174: 4 | J174: =J109-J108 -> 0 | K174: =K109-K108 -> 1 | L174: =L109-L108 -> -3 | M174: =M109-M108 -> -4 | N174: =O109-O108 -> -73
A175: %chg_prv_12-11 | B175: =(B174/B108)*100 -> -38.70967742 | C175: -35.71428571 | D175: -23.61111111 | E175: -33.33333333 | F175: 0 | G175: -7.5 | H175: -36.11111111 | I175: 12.90322581 | J175: 0 | K175: 4.166666667 | L175: -9.090909091 | M175: -13.79310345 | N175: =(N174/O108)*100 -> -16.3310962
B177: jan-dec | C177: feb-jan | D177: mar-feb | E177: apr-mar | F177: may-apr | G177: jun-may | H177: jul-jun | I177: aug-jul | J177: sep-aug | K177: oct-sep | L177: nov-oct | M177: dec-nov
A178: change_13 | B178: =B110-M109 -> -9 | C178: =C110-B110 -> 10 | D178: 23 | E178: -6 | F178: -2 | G178: -10 | H178: -5 | I178: =I110-H110 -> 10 | J178: -17 | K178: -3 | L178: 14 | M178: -11
A179: %change_13 | B179: =(B178/M109)*100 -> -36 | C179: =(C178/B110)*100 -> 62.5 | D179: 88.46153846 | E179: -12.24489796 | F179: -4.651162791 | G179: -24.3902439 | H179: -16.12903226 | I179: 38.46153846 | J179: -47.22222222 | K179: -15.78947368 | L179: 87.5 | M179: -36.66666667
B180: jan | C180: feb | D180: mar | E180: apr | F180: may | G180: jun | H180: jul | I180: aug | J180: sep | K180: oct | L180: nov | M180: dec | N180: ytd_total
A181: chg_prv_13-12 | B181: =B110-B109 -> -3 | C181: -1 | D181: -6 | E181: 21 | F181: -8 | G181: -6 | H181: =H110-H109 -> 3 | I181: 1 | J181: =J110-J109 -> -8 | K181: -9 | L181: =L110-L109 -> 0 | M181: -6 | N181: =O110-O109 -> -22
A182: %chg_prv_13-12 | B182: =(B181/B109)*100 -> -15.78947368 | C182: -3.703703704 | D182: -10.90909091 | E182: 95.45454545 | F182: -16.32653061 | G182: -16.21621622 | H182: 13.04347826 | I182: =(I181/I109)*100 -> 2.857142857 | J182: -29.62962963 | K182: =(K181/K109)*100 -> -36 | L182: 0 | M182: =(M181/M109)*100 -> -24 | N182: =(N181/O109)*100 -> -5.882352941
B184: jan-dec | C184: feb-jan | D184: mar-feb | E184: apr-mar | F184: may-apr | G184: jun-may | H184: jul-jun | I184: aug-jul | J184: sep-aug | K184: oct-sep | L184: nov-oct | M184: dec-nov
A185: change_14 | B185: =B111-M110 -> 18 | C185: =C111-B111 -> -20 | D185: 10 | E185: 3 | F185: 9 | G185: -5 | H185: -8 | I185: -9 | J185: 17 | K185: -1 | L185: -8 | M185: -6
A186: %change_14 | B186: =(B185/M110)*100 -> 94.73684211 | C186: =(C185/B111)*100 -> -54.05405405 | D186: 58.82352941 | E186: 11.11111111 | F186: 30 | G186: -12.82051282 | H186: -23.52941176 | I186: -34.61538462 | J186: 100 | K186: -2.941176471 | L186: -24.24242424 | M186: -24
B187: jan | C187: feb | D187: mar | E187: apr | F187: may | G187: jun | H187: jul | I187: aug | J187: sep | K187: oct | L187: nov | M187: dec | N187: ytd_total
A188: chg_prv_14-13 | B188: =B111-B110 -> 21 | C188: -9 | D188: -22 | E188: -13 | F188: -2 | G188: 3 | H188: =H111-H110 -> 0 | I188: -19 | J188: =J111-J110 -> 15 | K188: 17 | L188: =L111-L110 -> -5 | M188: 0 | N188: =O111-O110 -> -14
A189: %chg_prv_14-13 | B189: =(B188/B110)*100 -> 131.25 | C189: -34.61538462 | D189: -44.89795918 | E189: -30.23255814 | F189: -4.87804878 | G189: 9.677419355 | H189: 0 | I189: =(I188/I110)*100 -> -52.77777778 | J189: 78.94736842 | K189: =(K188/K110)*100 -> 106.25 | L189: -16.66666667 | M189: =(M188/M110)*100 -> 0 | N189: =(N188/O110)*100 -> -3.977272727
B191: jan-dec | C191: feb-jan | D191: mar-feb | E191: apr-mar | F191: may-apr | G191: jun-may | H191: jul-jun | I191: aug-jul | J191: sep-aug | K191: oct-sep | L191: nov-oct | M191: dec-nov
A192: change_15
A193: %change_15
B194: jan | C194: feb | D194: mar | E194: apr | F194: may | G194: jun | H194: jul | I194: aug | J194: sep | K194: oct | L194: nov | M194: dec | N194: ytd_total
A195: chg_prv_15-14 | N195: =N112-N111 -> -338
A196: %chg_prv_15-14 | N196: =(N195/N111)*100 -> -100
A198: ecch_mbp | B198: jan | C198: feb | D198: mar | E198: apr | F198: may | G198: jun | H198: jul | I198: aug | J198: sep | K198: oct | L198: nov | M198: dec | N198: ytd_total
A199: 2003 | B199: 1 | C199: 1 | D199: 3 | E199: 10 | F199: 8 | G199: 8 | H199: 11 | I199: 10 | J199: 16 | K199: 16 | L199: 6 | M199: 2 | N199: =SUM(B199:M199) -> 92 | O199: =SUM(B199:M199) -> 92
A200: 2004 | B200: 2 | C200: 4 | D200: 4 | E200: 8 | F200: 21 | G200: 11 | H200: 9 | I200: 4 | J200: 10 | K200: 8 | L200: 13 | M200: 4 | N200: 98 | O200: 98
A201: 2005 | B201: 4 | C201: 0 | D201: 6 | E201: 10 | F201: 4 | G201: 10 | H201: 4 | I201: 8 | J201: 11 | K201: 7 | L201: 9 | M201: 2 | N201: 75 | O201: 75
A202: 2006 | B202: 2 | C202: 19 | D202: 5 | E202: 6 | F202: 21 | G202: 7 | H202: 8 | I202: 19 | J202: 4 | K202: 14 | L202: 5 | M202: 3 | N202: 113 | O202: 113
A203: 2007 | B203: 1 | C203: 1 | D203: 2 | E203: 27 | F203: 15 | G203: 5 | H203: 11 | I203: 5 | J203: 39 | K203: 14 | L203: 17 | M203: 11 | N203: 148 | O203: 148
A204: 2008 | B204: 7 | C204: 10 | D204: 12 | E204: 17 | F204: 12 | G204: 5 | H204: 19 | I204: 8 | J204: 28 | K204: 26 | L204: 29 | M204: 5 | N204: 178 | O204: 178
A205: 2009 | B205: 9 | C205: 4 | D205: 3 | E205: 9 | F205: 8 | G205: 5 | H205: 14 | I205: 14 | J205: 15 | K205: 25 | L205: 10 | M205: 2 | N205: =SUM(B205:M205) -> 118 | O205: =SUM(B205:M205) -> 118
A206: 2010 | B206: 5 | C206: 2 | D206: 8 | E206: 9 | F206: 12 | G206: 31 | H206: 17 | I206: 7 | J206: 15 | K206: 8 | L206: 6 | M206: 11 | N206: 131 | O206: 131
A207: 2011 | B207: 10 | C207: 3 | D207: 16 | E207: 6 | F207: 13 | G207: 7 | H207: 18 | I207: 5 | J207: 7 | K207: 8 | L207: 10 | M207: 3 | N207: 106 | O207: 106
A208: 2012 | B208: 7 | C208: 13 | D208: 10 | E208: 17 | F208: 12 | G208: 16 | H208: 13 | I208: 15 | J208: 3 | K208: 6 | L208: 19 | M208: 6 | N208: 137 | O208: 137
A209: 2013 | B209: 10 | C209: 7 | D209: 6 | E209: 13 | F209: 8 | G209: 21 | H209: 8 | I209: 29 | J209: 7 | K209: 12 | L209: 11 | M209: 10 | N209: 142 | O209: 142
A210: 2014 | B210: 4 | C210: 18 | D210: 6 | E210: 11 | F210: 9 | G210: 13 | H210: 12 | I210: 20 | J210: 9 | K210: 8 | L210: 12 | M210: 4 | N210: 126 | O210: 126
A211: 2015 | N211: =SUM(B211:B211) -> 0 | O211: =SUM(B211:M211) -> 0
B213: jan-dec | C213: feb-jan | D213: mar-feb | E213: apr-mar | F213: may-apr | G213: jun-may | H213: jul-jun | I213: aug-jul | J213: sep-aug | K213: oct-sep | L213: nov-oct | M213: dec-nov
A214: change_04 | B214: =B200-M199 -> 0 | C214: =C200-B200 -> 2 | D214: 0 | E214: 4 | F214: 13 | G214: -10 | H214: -2 | I214: -5 | J214: 6 | K214: -2 | L214: 5 | M214: -9
A215: %change_04 | B215: =(B214/M199)*100 -> 0 | C215: =(C214/B200)*100 -> 100 | D215: 0 | E215: 100 | F215: 162.5 | G215: -47.61904762 | H215: -18.18181818 | I215: -55.55555556 | J215: 150 | K215: -20 | L215: 62.5 | M215: -69.23076923
B216: jan | C216: feb | D216: mar | E216: apr | F216: may | G216: jun | H216: jul | I216: aug | J216: sep | K216: oct | L216: nov | M216: dec | N216: ytd_total
A217: chg_prv_04-03 | B217: =B200-B199 -> 1 | C217: 3 | D217: 1 | E217: -2 | F217: 13 | G217: 3 | H217: -2 | I217: -6 | J217: =J200-J199 -> -6 | K217: =K200-K199 -> -8 | L217: =L200-L199 -> 7 | M217: =M200-M199 -> 2 | N217: =O200-O199 -> 6
A218: %chg_prv_04-03 | B218: =(B217/B199)*100 -> 100 | C218: 300 | D218: 33.33333333 | E218: -20 | F218: 162.5 | G218: 37.5 | H218: -18.18181818 | I218: -60 | J218: -37.5 | K218: -50 | L218: 116.6666667 | M218: 100 | N218: =(N217/O199)*100 -> 6.52173913
B220: jan-dec | C220: feb-jan | D220: mar-feb | E220: apr-mar | F220: may-apr | G220: jun-may | H220: jul-jun | I220: aug-jul | J220: sep-aug | K220: oct-sep | L220: nov-oct | M220: dec-nov
A221: change_05 | B221: =B201-M200 -> 0 | C221: =C201-B201 -> -4 | D221: 6 | E221: 4 | F221: -6 | G221: 6 | H221: -6 | I221: 4 | J221: 3 | K221: -4 | L221: 2 | M221: -7
A222: %change_05 | B222: =(B221/M200)*100 -> 0 | C222: =(C221/B201)*100 -> -100 | E222: 66.66666667 | F222: -60 | G222: 150 | H222: -60 | I222: 100 | J222: 37.5 | K222: -36.36363636 | L222: 28.57142857 | M222: -77.77777778
B223: jan | C223: feb | D223: mar | E223: apr | F223: may | G223: jun | H223: jul | I223: aug | J223: sep | K223: oct | L223: nov | M223: dec | N223: ytd_total
A224: chg_prv_05-04 | B224: =B201-B200 -> 2 | C224: -4 | D224: 2 | E224: 2 | F224: -17 | G224: -1 | H224: -5 | I224: 4 | J224: =J201-J200 -> 1 | K224: =K201-K200 -> -1 | L224: =L201-L200 -> -4 | M224: =M201-M200 -> -2 | N224: =O201-O200 -> -23
A225: %chg_prv_05-04 | B225: =(B224/B200)*100 -> 100 | C225: -100 | D225: 50 | E225: 25 | F225: -80.95238095 | G225: -9.090909091 | H225: -55.55555556 | I225: 100 | J225: 10 | K225: =(K224/K200)*100 -> -12.5 | L225: =(L224/L200)*100 -> -30.76923077 | M225: =(M224/M200)*100 -> -50 | N225: =(N224/O200)*100 -> -23.46938776
B227: jan-dec | C227: feb-jan | D227: mar-feb | E227: apr-mar | F227: may-apr | G227: jun-may | H227: jul-jun | I227: aug-jul | J227: sep-aug | K227: oct-sep | L227: nov-oct | M227: dec-nov
... 145 more rows

Sheet graphs

Sheet explanations
A2: When The Bottom Line gives multiple weeks of data:
A3: a) The data does not exceed one, individual, month | B3: sarah?
A4: -Fill the cells green and list the amount in the latest week covered | C4: jimmy?
A5: b) The data overlaps two months
A6: -Divide the data up by approximatly the same amount of days covered for each month
A7: -If there is an odd number and equal time for each month, the extra is deposited in the later week/month
A8: -fill the cells pink
